Workbook

Sheet Begruessung
B1: Hi,
B3: nicht erschrecken, die Datei enthält natürlich Makros. Sie dienen bis auf 1 Ausnahme nur zum Navigieren. Die Ausnahme ist das Lösch-Makro, das alle Trainingsdaten entfernt. Man kann aber auch normal von Hand in der Datei navigieren. Es ist nichts versteckt (da fällt mir ein: Spalten im Laufkalenderblatt). Auf allen Arbeitsblättern habe ich sicherheitshalber einen Blattschutz aktiviert, aber ohne Paßwort. Kann über Extras-Schutz-Blattschutzaufheben deaktiviert werden.
B5: Zur Demo habe ich ein paar Trainingsdaten eingegeben, damit Ihr die Berechnungen und Grafiken sehen könnt. Macht eine Sicherheitskopie, bevor Ihr mit dem Button im Hauptmenü (oder auch zu Fuß, wenn Ihr dem Makro nicht trauen wollt) die Testdaten löscht und Euch selbst versucht.
B7: Die Kennziffern für die Belastung kann man im Blatt Kriterien beliebig ändern (z.Z. HF-Bereiche). Nur muss man dann bei der Eingabe der Trainingsläufe, genau wie bei den Schuhmodellen, natürlich genau dasselbe Kürzel verwenden. Das ist durch die automatische dropdown-Liste und Gültigkeitsprüfung gewährleistet.
B9: Die Bildschirm-Anzeige ist für 1280x1024 Pixel eingestellt. Das läßt sich am einfachsten durch Änderung des Zoom-Faktors anpassen (Zoom-Faktor ist nur nutzbar, wenn Cursor in der Tabelle steht, d.h. nicht die Graphik markiert ist). Genug der Gebrauchsanweisungen, so kompliziert ist's wirklich nicht. Ach so, vielleicht paßt meine Skala in der Grafik nicht zu Eurem Trainingsumfang. Zum ändern einfach auf eine Skalenzahl doppelklicken und dann im Register Skalierung das Maximum verändern.
B11: Viel Spaß
B12: Uli | D12: mailto:ulrich.sauer@gmx.de | G12: http://www.laufen-in-witten.de
D13: http://www.uli-sauer.de | G13: http://www.london-marathon.de
B15: Bei weiteren Fragen beachtet bitte die FAQ: | F15: http://www.uli-sauer.de/laufen/training/faq_lauftagebuch.htm
B17: Aktualisierungen
B18: 15.11.19: Achtung! Dies ist die Version ohne Radfahren! Und sie ist eine XLSM-Version (Excel 2013). Weitere Änderung: Statt Eingaben für die Muckibude ist nun die Eingabe von Tagen mit Verletzung oder Krankheit vorgesehen. Hierfür wurde aber nur die Bezeichnung verändert. Die Funktion ist gleich. Das Makro mit der automatischen Grafikschau habe ich gelöscht. War ein nettes Gimmick, aber ich habe das selbst nie genutzt, also überflüssig. Da dieser Laufkalender offenbar immer weiter lebt, ist die Gültigkeitsprüfung für die Eingabe des aktuellen Jahres jetzt auf max. 2030 gesetzt. Das werde ich wohl nicht erleben.
B19: 12.06.18: Im Laufkalender kann man die Distanz jetzt aus einer Dropdown-Liste auswählen. Die Distanzen können individuell editiert werden im Blatt Strecken.
B20: 01.01.18: Keine Änderungen gegenüber der Vorjahresversion.
B21: 01.01.17: Keine Änderungen gegenüber der Vorjahresversion.
B22: 08.12.15: Fehler behoben. Sonderabfragen im Blatt Kriterien für Rad-Zeiträume werden jetzt richtig berechnet.
B23: 22.11.13: Hinweis Die Download-Datei ist weiterhin eine xls-Datei, das heißt auf Basis Excel2003. Wer eine aktuelle Excel-Version hat, kann die Datei einfach als xlsm (Datei mit Makros) abspeichern und ohne Ein- schränkung nutzen. Vorteil ist auch, dass die Datei dann nur 0,5MB statt 1,5MB hat.
B24: 07.01.10: (1) Im offiziellen Kalender erhält am Jahresanfang die erste Woche, die mindestens 4 Tage hat, die Nummer 1. Diese Feststellung der ersten Wochen-Nummer wird jetzt per Formel berücksichtigt, damit die Wochen-Nummer im Blatt Laufkal bzw. Radkal und in der Wochen-Grafik mit dem offiziellen Kalender übereinstimmt. Danke für den Hinweis an User Leif Koldkjær. (2) Bei der Eingabe des aktuellen Jahres im Blatt "Daten" gab es eine Gültigkeitsprüfung <=2010. Diese wurde auf 2020 erweitert. Ich hätte vor 10 Jahren nicht gedacht, dass mein Lauftagebuch ein Dauerbrenner wird...
B25: 01.01.09: Keine inhaltlichen Änderungen in Ausgabe 2009 gegenüber bisherigem Stand. Nur der Link zum Leistungsindex bei Greif.de musste aktualisiert werden. Außerdem sind die Grafiken für eine Bildschirm-Anzeige von 1280x1024 Pixel vergrößert worden.
B26: 01.01.06: (1) Neue Grafik eingefügt mit Darstellung der Trainings-km der Vorjahre (Arbeitsblatt "Jahre") (2) Makro zum Daten-Löschen erweitert um die Schuh-Daten (Kaufdatum, Vorjahres-km, ausgemusterte)
B27: 01.01.05: (1) Im Laufkalender wird jetzt der %-Anteil des Durchschnittspulses vom Höchstpuls errechnet. Der persönliche maximale Puls muss dazu im Blatt Daten erfasst werden. (2) Der Vorschlag für die Belastungsstufen ist neu definiert, entsprechend den bei Laktattests üblichen Trainingshinweisen. Im Blatt Kriterien wird als Hilfestellung eine Tabelle mit Pulsbereichen errechnet. (3) Im Laufkalender kann man jetzt ein Kennzeichen setzen, wenn beide Einträge eines Tages zu einem Lauf zusammengefasst werden sollen. (4) Die in Vorjahren mit den Schuhen gelaufenen Kilometer werden jetzt im Blatt "Kriterien" eingetragen.
B28: 31.03.04: Im Laufkalender-Blatt die Gewichtseingabe und die Formel zur BMI-Ermittlung in getrennte Spalten gesetzt, weil dann das Löschen über Makro "Alle Daten löschen" schneller geht. Die Reihenfolge der Arbeitsblätter geändert und in Excel-XP farbig hinterlegt.
B29: 03.01.04: Formelfehler bei der Berechnung der Greif-Punkte korrigiert. Ergebnis war immer zu hoch, weil beim
B30: Formelteil "maxHF/220" Zähler und Nenner verwechselt war. Danke an Harald Dünnfelder für den Hinweis.
B31: 01.01.04: Das Kaufdatum der Schuhe wird jetzt im Blatt "Kriterien" eingegeben. Alle Felder, in denen Eingaben
B32: durch den Anwender erwartet werden, sind in | F32: dieser hässlichen Farbe | H32: hinterlegt. Im Laufkalender wird bei
B33: Eingabe des Gewichts der Body Mass Index berechnet. Dazu muss im Blatt Daten die Körpergrösse eingegeben
B34: werden.
B35: 15.02.03: Ein bißchen gespielt: 2 zusätzliche Grafiken für Belastung und Schuhe eingebaut. Statusmeldung für die automatische Grafik-Schau. Schuh-Anzahl auf 10 begrenzt. Spalten und Zeilen auf den Blättern soweit ausgeblendet, dass man sich nur wie gewünscht bewegen kann. Schriftfarben-Makro im Laufkal so geändert, dass Cursor da bleibt, wo die Farbe geändert wird.
B36: 01.12.02: Eine wichtige Neuerung, rechtzeitig zum Einstieg in das neue Jahr. In den Kalenderblättern gibt es jetzt für jeden Tag 2 Zeilen. Dieser Wunsch kam des öfteren von Benutzern, die 2 Einheiten am Tag absolvieren. Doch auch für alle anderen ist das von Nutzen. So kann man nun das Ein- und Auslaufen beim Wettkampf separat eingeben. Und es ist mehr Platz für die Kommentare. Um die Schriftfarbe ohne Aufhebung des Blattschutzes wechseln zu können, gibt es neue Buttons. Außerdem habe ich einige Zahlenformate im Kalender geändert (führende Nullen bei Minuten und Sekunden, Nullanzeige im Feld "weicher Boden"). Die Spalte für die "historische" Gesamtzahl für Besuch der Muckibude habe ich umfunktioniert zur Eingabe des Gewichts in kg.
B37: 26.09.02: Wieder eine Idee von Hilbert (danke). Im Blatt "Laufkal" werden jetzt im Titel km-Summen für Jahr, aktuellen Monat und Vormonat angezeigt, so dass man das nicht erst im Blatt "Laufen" sieht. Das hat den kleinen Nachteil, dass man nicht mehr unbedenklich Spalten löschen kann, die man für überflüssig hält. Mit dem Löschen einer Spalte ginge natürlich auch der Inhalt der ersten Zeile verloren.
B38: 01.09.02: In Laufkalender und Radkalender kann man jetzt aus Dropdown-Listen auswählen (Belastung, Schuh bzw. Rad, Kommentar). Im Kommentarfeld kann man die Werte aus der Liste auch ignorieren, in den anderen Feldern sind sie Zwang. Außerdem für andere Felder Gültigkeitsprüfungen eingebaut. Für die Dropdown-Liste im Kommentarfeld gibt es ein neues Tabellenblatt "Strecken". - Außerdem wird für die Sportwissenschaftler jetzt im Blatt "Laufen" auch das Tempo in m/sec berechnet.
B39: 01.08.02: Im Laufkalender wird das Tempo jetzt zusätzlich zu min/km auch in km/Std angegeben.
B40: 24.03.02: Ich hatte vergessen, dass man als Folge der neuen Grafik (siehe 03.03.02) jetzt separate Belastungsstufen fürs Radfahren braucht. Im Blatt "Kriterien" kann man diese jetzt getrennt eingeben.
B41: 03.03.02: Neue Grafik eingebaut, die die Lauf-km je Monat mit Aufteilung nach Belastungsstufen zeigt
B42: 19.12.01: Den Laufkalender um 2 Spalten für durchschnittliche und maximale Herzfrequenz erweitert. Zusätzlich eine Spalte mit Berechnung von "Greif-Punkten" gemäß der Formel von Peter Greif (http://www.greif.de/formel.htm). Für diese Berechnung muss im Blatt Daten (Feld I15) die persönliche maximale Herzfrequenz eingegeben werden. Beim betreffenden Trainingslauf ist für die Greif-Punkte die Angabe der durchschnittlichen Herzfrequenz erforderlich. Die in diesem Lauf erreichte maximale HF ist für die Berechnung nicht relevant.
B43: 27.10.01: Im Blatt Daten (Zellen D56:D108 sowie E56:E108) die Formeln zur Berechnung der Wochensummen geändert. Für die Summenermittlung wird jetzt die Spalte D in den Kalenderblättern herangezogen. Damit soll es möglich werden, in den Kalenderblättern Zeilen einzufügen (zur Eingabe mehrerer Einheiten am selben Tag). Bei Verdoppelung der Sonntagszeile wurde bisher die Wochensumme falsch berechnet. Bei Einfügen von Zeilen aber immer darauf achten, dass die Wochen-Nummer richtig berechnet wird.
B44: 29.04.2001: Wer mit dem Kalender irgendwann mitten im Jahr beginnt, kann im Blatt Daten jetzt das Startdatum eingeben, damit alle Durchschnittswerte richtig berechnet werden.
B45: Version 2001: Die Belastungsstufe 6 kann jetzt wie die ersten 5 beliebig benutzt werden (bisher war sie für Ein-/Auslaufen reserviert und wurde bei den Statistiken der Stufe 5 zugerechnet.)

Sheet Menü
B3: Zur Datenanzeige
B11: Zur regelmäßigen Dateneingabe im Kalender
B19: Zur Eingabe von Stammdaten und jährlichen Anpassungen

Sheet Laufen
B1: =+"Laufen "&Daten!D3 -> Laufen 2021 | C1: Stand | D1: =TODAY() -> 2020-11-05 | E1: km | F1: Anzahl | G1: hh:mm:ss | I1: verletzt/krank
B2: im Jahr insgesamt | E2: =DSUM(laufkalender,Laufkal!F5,Kriterien!$A$6:$B$7) -> 22 | F2: =DCOUNT(laufkalender,Laufkal!F5,Kriterien!A6:B7)-L26 -> 2 | G2: =DSUM(laufkalender,Laufkal!L5,Kriterien!A6:B7)/24/60 -> 0.08315972222 | I2: =DCOUNT(laufkalender,Laufkal!AH5,Kriterien!$A$6:$B$7) -> 1
B4: Durchschnitt pro Monat | E4: =+E2/Daten!D11 ->  | F4: =+F2/Daten!D11 ->  | G4: =+G2/Daten!D11 ->  | I4: =+I2/Daten!D11 -> 
B5: Durchschnitt pro Woche | E5: =(+E2+Daten!I8+Daten!I12)/Daten!D10 ->  | F5: =(+F2+Daten!I9+Daten!I13)/Daten!D10 ->  | G5: =+G2/Daten!D10 ->  | I5: =+I2/Daten!D10 -> 
B6: Durchschnitt pro Tag | E6: =+E2/Daten!D9 ->  | F6: =+F2/Daten!D9 ->  | G6: =+G2/Daten!D9 -> 
B7: Durchschnitt pro Lauf | E7: =+E2/F2 -> 11 | G7: =+G2/F2 -> 00:59:52.500 | I7: ges. seit 01/2001
B8: Durchschnittstempo km/Std - m/sec - min/km | E8: =+E2/(G2*24) -> 11.02296451 | F8: =+E2*1000/(G2*24*60*60) -> 3.061934586 | G8: =+G2/E2 -> 00:05:26.591 | I8: =+I2+Daten!E28 -> 1
B9: längster Lauf | E9: =DMAX(laufkalender,Laufkal!F5,Kriterien!A6:A7) -> 10 | G9: =DMAX(laufkalender,Laufkal!L5,Kriterien!A6:B7)/24/60 -> 0.03975694444
B10: kürzester Lauf | E10: =DMIN(laufkalender,Laufkal!F5,Kriterien!A6:A7) -> 2 | G10: =DMIN(laufkalender,Laufkal!L5,Kriterien!A6:B7)/24/60 -> 0.009722222222 | I10: gesamt-km
B11: weicher Boden insgesamt | E11: =+Laufkal!AF739 -> 9 | F11: =+E11/E2 -> 0.4090909091 | I11: seit 11/85
B12: harter Boden insgesamt | E12: =+Laufkal!AG739 -> 13 | F12: =+E12/E2 -> 0.5909090909 | I12: =+Daten!C28+Laufen!E2 -> 22
B14: Schuhe | C14: Kauf | D14: Anzahl | E14: km | F14: % km | G14: km ges. | I14: Belastung | J14: Anzahl | K14: km | L14: % km
B15: =+Kriterien!A12 -> Schuh 1 | C15: =IF(+Kriterien!C12="","",+Kriterien!C12) ->  | D15: =DCOUNT(laufkalender,Laufkal!F5,Kriterien!A61:A62) -> 1 | E15: =DSUM(laufkalender,Laufkal!F5,Kriterien!A61:A62) -> 10 | F15: =+E15/$E$26 -> 0.4545454545 | G15: =+E15+Kriterien!D12 -> 10 | I15: =+Kriterien!A26 -> Wettkampf | J15: =DCOUNT(laufkalender,Laufkal!F5,Kriterien!G43:G44) -> 1 | K15: =DSUM(laufkalender,Laufkal!F5,Kriterien!G43:G44) -> 10 | L15: =+K15/$K$21 -> 0.4545454545
B16: =+Kriterien!A13 -> Schuh 2 | C16: =IF(+Kriterien!C13="","",+Kriterien!C13) ->  | D16: =DCOUNT(laufkalender,Laufkal!F5,Kriterien!A63:A64) -> 2 | E16: =DSUM(laufkalender,Laufkal!F5,Kriterien!A63:A64) -> 12 | F16: 0.5454545455 | G16: =+E16+Kriterien!D13 -> 12 | I16: =+Kriterien!A27 -> Tempo (>90%) | J16: =DCOUNT(laufkalender,Laufkal!F5,Kriterien!G45:G46) -> 0 | K16: =DSUM(laufkalender,Laufkal!F5,Kriterien!G45:G46) -> 0 | L16: 0
B17: =+Kriterien!A14 -> Schuh 3 | C17: =IF(+Kriterien!C14="","",+Kriterien!C14) ->  | D17: =DCOUNT(laufkalender,Laufkal!F5,Kriterien!A65:A66) -> 0 | E17: =DSUM(laufkalender,Laufkal!F5,Kriterien!A65:A66) -> 0 | F17: 0 | G17: =+E17+Kriterien!D14 -> 0 | I17: =+Kriterien!A28 -> GA2 (>80%) | J17: =DCOUNT(laufkalender,Laufkal!F5,Kriterien!G47:G48) -> 0 | K17: =DSUM(laufkalender,Laufkal!F5,Kriterien!G47:G48) -> 0 | L17: 0
B18: =+Kriterien!A15 -> Schuh 4 | C18: =IF(+Kriterien!C15="","",+Kriterien!C15) ->  | D18: =DCOUNT(laufkalender,Laufkal!F5,Kriterien!A67:A68) -> 0 | E18: =DSUM(laufkalender,Laufkal!F5,Kriterien!A67:A68) -> 0 | F18: 0 | G18: =+E18+Kriterien!D15 -> 0 | I18: =+Kriterien!A29 -> GA1 (>70%) | J18: =DCOUNT(laufkalender,Laufkal!F5,Kriterien!G49:G50) -> 0 | K18: =DSUM(laufkalender,Laufkal!F5,Kriterien!G49:G50) -> 0 | L18: 0
B19: =+Kriterien!A16 -> Schuh 5 | C19: =IF(+Kriterien!C16="","",+Kriterien!C16) ->  | D19: =DCOUNT(laufkalender,Laufkal!F5,Kriterien!A69:A70) -> 0 | E19: =DSUM(laufkalender,Laufkal!F5,Kriterien!A69:A70) -> 0 | F19: 0 | G19: =+E19+Kriterien!D16 -> 0 | I19: =+Kriterien!A30 -> LDL (>65%) | J19: =DCOUNT(laufkalender,Laufkal!F5,Kriterien!G51:G52) -> 1 | K19: =DSUM(laufkalender,Laufkal!F5,Kriterien!G51:G52) -> 10 | L19: 0.4545454545
B20: =+Kriterien!A17 -> Schuh 6 | C20: =IF(+Kriterien!C17="","",+Kriterien!C17) ->  | D20: =DCOUNT(laufkalender,Laufkal!F5,Kriterien!A71:A72) -> 0 | E20: =DSUM(laufkalender,Laufkal!F5,Kriterien!A71:A72) -> 0 | F20: 0 | G20: =+E20+Kriterien!D17 -> 0 | I20: =+Kriterien!A31 -> Reg (bis 65%) | J20: =DCOUNT(laufkalender,Laufkal!F5,Kriterien!G53:G54) -> 1 | K20: =DSUM(laufkalender,Laufkal!F5,Kriterien!G53:G54) -> 2 | L20: 0.09090909091
B21: =+Kriterien!A18 -> Schuh 7 | C21: =IF(+Kriterien!C18="","",+Kriterien!C18) ->  | D21: =DCOUNT(laufkalender,Laufkal!F5,Kriterien!A73:A74) -> 0 | E21: =DSUM(laufkalender,Laufkal!F5,Kriterien!A73:A74) -> 0 | F21: 0 | G21: =+E21+Kriterien!D18 -> 0 | J21: =SUM(J15:J20) -> 3 | K21: =SUM(K15:K20) -> 22 | L21: 1
B22: =+Kriterien!A19 -> Schuh 8 | C22: =IF(+Kriterien!C19="","",+Kriterien!C19) ->  | D22: =DCOUNT(laufkalender,Laufkal!F5,Kriterien!A75:A76) -> 0 | E22: =DSUM(laufkalender,Laufkal!F5,Kriterien!A75:A76) -> 0 | F22: 0 | G22: =+E22+Kriterien!D19 -> 0
B23: =+Kriterien!A20 -> Schuh 9 | C23: =IF(+Kriterien!C20="","",+Kriterien!C20) ->  | D23: =DCOUNT(laufkalender,Laufkal!F5,Kriterien!A77:A78) -> 0 | E23: =DSUM(laufkalender,Laufkal!F5,Kriterien!A77:A78) -> 0 | F23: 0 | G23: =+E23+Kriterien!D20 -> 0
B24: =+Kriterien!A21 -> Schuh 10 | C24: =IF(+Kriterien!C21="","",+Kriterien!C21) ->  | D24: =DCOUNT(laufkalender,Laufkal!F5,Kriterien!A79:A80) -> 0 | E24: =DSUM(laufkalender,Laufkal!F5,Kriterien!A79:A80) -> 0 | F24: 0 | G24: =+E24+Kriterien!D21 -> 0
B25: =+Kriterien!A22 -> Schuh 11 | C25: =IF(+Kriterien!C22="","",+Kriterien!C22) ->  | D25: =DCOUNT(laufkalender,Laufkal!F5,Kriterien!A81:A82) -> 0 | E25: =DSUM(laufkalender,Laufkal!F5,Kriterien!A81:A82) -> 0 | F25: 0 | G25: =+E25+Kriterien!D22 -> 0
D26: =SUM(D15:D25) -> 3 | E26: =SUM(E15:E25) -> 22 | F26: 1 | I26: Korr. Ein-/Auslaufen für Anzahl: | L26: =DSUM(laufkalender,Laufkal!AE5,Kriterien!$A$6:$B$7) -> 1
B27: ausgemusterte Schuhe

Sheet Laufkal
A1: =+Daten!D3 -> 2021 | F1: =+"Jahr: "&+ROUND(Laufen!E2,1)&" km" -> Jahr: 22 km | N1: akt. Monat: | Q1: =IF(+Daten!D3=YEAR(Daten!D8),VLOOKUP(aktuellermonat,Daten!C33:D44,2),"---") -> --- | S1: km | T1: Vormonat: | W1: =IF(aktuellermonat<=1,"---",VLOOKUP(aktuellermonat-1,Daten!C33:D44,2)) -> --- | Y1: km
B2: Mo | F2: km | G2: Laufzeit | L2: min | M2: Ø | N2: Ø | O2: Be- | P2: HF | Q2: HF | R2: Greif | S2: Sch- | T2: Anteil | V2: verletzt/krk. | X2: Gewicht | AA2: Zs | AB2: Tg | AC2: Wo | AD2: Wo | AE2: Zs | AF2: km | AG2: km | AH2: Wert
B3: nat | M3: min/ | N3: km/ | O3: las- | P3: Ø | Q3: %von | R3: Pkte | S3: uh | T3: weich | U3: hart | V3: Ein | W3: Anz. | X3: in kg | Y3: BMI | AA3: fsg | AB3: sum | AC3: sum | AD3: nr | AE3: fsg | AF3: weich | AG3: hart | AH3: Mu
A4: Datum | C4: Tag | G4: h | H4: : | I4: mm | J4: : | K4: ss | M4: km | N4: Std | O4: tung | Q4: max | T4: 1-10 | V4: gabe | W4: lfd.J. | Z4: Kommentar | AH4: bu
A5: datum | B5: mo | C5: tag | D5: m | E5: so | F5: km | G5: h | I5: mm | K5: ss | L5: min | M5: min/km | N5: km/std | O5: bel | P5: dhf | Q5: %HF | R5: gpkt | S5: Schuh | T5: weich | U5: hart | V5: 6 | Z5: kommentar | AA5: Zus | AC5: wosum | AD5: wonr | AE5: Zusfsg | AF5: kmw | AG5: kmh | AH5: WeMu
A6: =DATE(Daten!D3,1,1) -> 2021-01-01 | B6: =MONTH(A6) -> 1 | C6: =WEEKDAY(A6) -> 1900-01-06 | D6: 1 | E6: =IF(D6=2,IF(C6=1,1,2),0) -> 0 | H6: : | J6: : | L6: =IF((+G6*60+I6+K6/60)>0,G6*60+I6+K6/60," ") ->  | M6: =IF(+F6>0,+L6/F6/24/60," ") ->  | N6: =IF(F6>0,+F6/(L6/60),"") ->  | Q6: =IF(maxhf<100,0,IF(ISBLANK(P6)="WAHR",P6,P6/maxhf)*100) -> 0 | R6: =IF(F6>0,IF(P6>0,+F6*(F6*1000/(G6*60+I6+K6/60))/(maxhf-P6)*(maxhf/220),""),"") ->  | U6: =IF(COUNTBLANK(T6)=1,"",IF(T6="10","0",10-T6)) ->  | W6: =IF(V6<>"",SUM($AH$6:AH6)/10,"") ->  | Y6: =IF(X6>0,+X6/Daten!$I$18^2,"") ->  | AC6: =IF(WEEKDAY(A6)=1,IF(E6=1,VLOOKUP(AD6,Daten!$C$50:$D$103,2)," "),"") ->  | AD6: =erstewochennr -> 0 | AE6: =IF(F6>0,IF(D6=2,IF((AA5+AA6)>0,1,0),0),0) -> 0 | AF6: =+T6/10*F6 -> 0 | AG6: =IF(COUNTBLANK(T6)=1,0,+U6/10*F6) -> 0 | AH6: =IF(V6<>"",10,"") -> 
A7: =+A6 -> 2021-01-01 | B7: =MONTH(A7) -> 1 | C7: =WEEKDAY(A7) -> 1900-01-06 | D7: 2 | E7: =IF(D7=2,IF(C7=1,1,2),0) -> 2 | H7: : | J7: : | L7: =IF((+G7*60+I7+K7/60)>0,G7*60+I7+K7/60," ") ->  | M7: =IF(+F7>0,+L7/F7/24/60," ") ->  | N7: =IF(F7>0,+F7/(L7/60),"") ->  | Q7: 0 | V7: v | W7: =IF(V7<>"",SUM($AH$6:AH7)/10,"") -> 1 | Y7: =IF(X7>0,+X7/Daten!$I$18^2,"") ->  | AB7: =IF(D7=2,+F7+F6,0) -> 0 | AC7: =IF(WEEKDAY(A7)=1,IF(E7=1,VLOOKUP(AD7,Daten!$C$50:$D$103,2)," "),"") ->  | AD7: =erstewochennr -> 0 | AE7: 0 | AF7: 0 | AG7: 0 | AH7: =IF(V7<>"",10,"") -> 10
A8: =+A6+1 -> 2021-01-02 | B8: 1 | C8: 1900-01-07 | D8: 1 | E8: 0 | H8: : | J8: : | Q8: 0 | W8: =IF(V8<>"",SUM($AH$6:AH8)/10,"") ->  | Y8: =IF(X8>0,+X8/Daten!$I$18^2,"") ->  | AB8: 0 | AC8: =IF(WEEKDAY(A8)=1,IF(E8=1,VLOOKUP(AD8,Daten!$C$50:$D$103,2)," "),"") ->  | AD8: =IF(WEEKDAY(A8)=2,IF(D8=1,AD7+1,AD7),AD7) -> 0 | AE8: 0 | AF8: 0 | AG8: 0
A9: =+A8 -> 2021-01-02 | B9: 1 | C9: 1900-01-07 | D9: 2 | E9: 2 | F9: 10 | H9: : | I9: 57 | J9: : | K9: 15 | L9: 57.25 | M9: 00:05:43.500 | N9: 10.48034934 | O9: L>65% | P9: 115 | Q9: 73.24840764 | R9: 29.67919998 | S9: s1 | T9: 9 | U9: 1 | W9: =IF(V9<>"",SUM($AH$6:AH9)/10,"") ->  | X9: 66 | Y9: =IF(X9>0,+X9/Daten!$I$18^2,"") -> 21.30681818 | Z9: Testeingabe | AB9: 10 | AC9: =IF(WEEKDAY(A9)=1,IF(E9=1,VLOOKUP(AD9,Daten!$C$50:$D$103,2)," "),"") ->  | AD9: 0 | AE9: 0 | AF9: 9 | AG9: 1
A10: =+A8+1 -> 2021-01-03 | B10: 1 | C10: 1900-01-01 | D10: 1 | E10: 0 | H10: : | J10: : | Q10: 0 | W10: =IF(V10<>"",SUM($AH$6:AH10)/10,"") ->  | Y10: =IF(X10>0,+X10/Daten!$I$18^2,"") ->  | AB10: 0 | AC10: =IF(WEEKDAY(A10)=1,IF(E10=1,VLOOKUP(AD10,Daten!$C$50:$D$103,2)," "),"") ->  | AD10: 0 | AE10: 0 | AF10: 0 | AG10: 0
A11: =+A10 -> 2021-01-03 | B11: 1 | C11: 1900-01-01 | D11: 2 | E11: 1 | H11: : | J11: : | Q11: 0 | W11: =IF(V11<>"",SUM($AH$6:AH11)/10,"") ->  | Y11: =IF(X11>0,+X11/Daten!$I$18^2,"") ->  | AB11: 0 | AC11: =IF(WEEKDAY(A11)=1,IF(E11=1,VLOOKUP(AD11,Daten!$C$50:$D$103,2)," "),"") -> 10 | AD11: 0 | AE11: 0 | AF11: 0 | AG11: 0
A12: =+A10+1 -> 2021-01-04 | B12: 1 | C12: 1900-01-02 | D12: 1 | E12: 0 | H12: : | J12: : | Q12: 0 | W12: =IF(V12<>"",SUM($AH$6:AH12)/10,"") ->  | Y12: =IF(X12>0,+X12/Daten!$I$18^2,"") ->  | AB12: 0 | AC12: =IF(WEEKDAY(A12)=1,IF(E12=1,VLOOKUP(AD12,Daten!$C$50:$D$103,2)," "),"") ->  | AD12: 1 | AE12: 0 | AF12: 0 | AG12: 0
A13: =+A12 -> 2021-01-04 | B13: 1 | C13: 1900-01-02 | D13: 2 | E13: 2 | H13: : | J13: : | Q13: 0 | W13: =IF(V13<>"",SUM($AH$6:AH13)/10,"") ->  | Y13: =IF(X13>0,+X13/Daten!$I$18^2,"") ->  | AB13: 0 | AC13: =IF(WEEKDAY(A13)=1,IF(E13=1,VLOOKUP(AD13,Daten!$C$50:$D$103,2)," "),"") ->  | AD13: 1 | AE13: 0 | AF13: 0 | AG13: 0
A14: =+A12+1 -> 2021-01-05 | B14: 1 | C14: 1900-01-03 | D14: 1 | E14: 0 | F14: 10 | H14: : | I14: 48 | J14: : | K14: 30 | L14: 48.5 | M14: 00:04:51 | N14: 12.37113402 | O14: w | P14: 140 | Q14: 89.17197452 | R14: 86.55383428 | S14: s2 | T14: 0 | U14: 10 | W14: =IF(V14<>"",SUM($AH$6:AH14)/10,"") ->  | Y14: =IF(X14>0,+X14/Daten!$I$18^2,"") ->  | Z14: Testeingabe Wettkampf | AA14: 1 | AB14: 0 | AC14: =IF(WEEKDAY(A14)=1,IF(E14=1,VLOOKUP(AD14,Daten!$C$50:$D$103,2)," "),"") ->  | AD14: 1 | AE14: 0 | AF14: 0 | AG14: 10
A15: =+A14 -> 2021-01-05 | B15: 1 | C15: 1900-01-03 | D15: 2 | E15: 2 | F15: 2 | H15: : | I15: 14 | J15: : | K15: 0 | L15: 14 | M15: 00:07:00 | N15: 8.571428571 | O15: R<65% | P15: 110 | Q15: 70.06369427 | R15: 4.338214977 | S15: s2 | T15: 0 | U15: 10 | W15: =IF(V15<>"",SUM($AH$6:AH15)/10,"") ->  | Y15: =IF(X15>0,+X15/Daten!$I$18^2,"") ->  | Z15: Ein-/Auslaufen | AA15: 1 | AB15: 12 | AC15: =IF(WEEKDAY(A15)=1,IF(E15=1,VLOOKUP(AD15,Daten!$C$50:$D$103,2)," "),"") ->  | AD15: 1 | AE15: 1 | AF15: 0 | AG15: 2
A16: =+A14+1 -> 2021-01-06 | B16: 1 | C16: 1900-01-04 | D16: 1 | E16: 0 | H16: : | J16: : | Q16: 0 | W16: =IF(V16<>"",SUM($AH$6:AH16)/10,"") ->  | Y16: =IF(X16>0,+X16/Daten!$I$18^2,"") ->  | AB16: 0 | AC16: =IF(WEEKDAY(A16)=1,IF(E16=1,VLOOKUP(AD16,Daten!$C$50:$D$103,2)," "),"") ->  | AD16: 1 | AE16: 0 | AF16: 0 | AG16: 0
A17: =+A16 -> 2021-01-06 | B17: 1 | C17: 1900-01-04 | D17: 2 | E17: 2 | H17: : | J17: : | Q17: 0 | W17: =IF(V17<>"",SUM($AH$6:AH17)/10,"") ->  | Y17: =IF(X17>0,+X17/Daten!$I$18^2,"") ->  | AB17: 0 | AC17: =IF(WEEKDAY(A17)=1,IF(E17=1,VLOOKUP(AD17,Daten!$C$50:$D$103,2)," "),"") ->  | AD17: 1 | AE17: 0 | AF17: 0 | AG17: 0
A18: =+A16+1 -> 2021-01-07 | B18: 1 | C18: 1900-01-05 | D18: 1 | E18: 0 | H18: : | J18: : | Q18: 0 | W18: =IF(V18<>"",SUM($AH$6:AH18)/10,"") ->  | Y18: =IF(X18>0,+X18/Daten!$I$18^2,"") ->  | AB18: 0 | AC18: =IF(WEEKDAY(A18)=1,IF(E18=1,VLOOKUP(AD18,Daten!$C$50:$D$103,2)," "),"") ->  | AD18: 1 | AE18: 0 | AF18: 0 | AG18: 0
A19: =+A18 -> 2021-01-07 | B19: 1 | C19: 1900-01-05 | D19: 2 | E19: 2 | H19: : | J19: : | Q19: 0 | W19: =IF(V19<>"",SUM($AH$6:AH19)/10,"") ->  | Y19: =IF(X19>0,+X19/Daten!$I$18^2,"") ->  | AB19: 0 | AC19: =IF(WEEKDAY(A19)=1,IF(E19=1,VLOOKUP(AD19,Daten!$C$50:$D$103,2)," "),"") ->  | AD19: 1 | AE19: 0 | AF19: 0 | AG19: 0
A20: =+A18+1 -> 2021-01-08 | B20: 1 | C20: 1900-01-06 | D20: 1 | E20: 0 | H20: : | J20: : | Q20: 0 | W20: =IF(V20<>"",SUM($AH$6:AH20)/10,"") ->  | Y20: =IF(X20>0,+X20/Daten!$I$18^2,"") ->  | AB20: 0 | AC20: =IF(WEEKDAY(A20)=1,IF(E20=1,VLOOKUP(AD20,Daten!$C$50:$D$103,2)," "),"") ->  | AD20: 1 | AE20: 0 | AF20: 0 | AG20: 0
A21: =+A20 -> 2021-01-08 | B21: 1 | C21: 1900-01-06 | D21: 2 | E21: 2 | H21: : | J21: : | Q21: 0 | W21: =IF(V21<>"",SUM($AH$6:AH21)/10,"") ->  | Y21: =IF(X21>0,+X21/Daten!$I$18^2,"") ->  | AB21: 0 | AC21: =IF(WEEKDAY(A21)=1,IF(E21=1,VLOOKUP(AD21,Daten!$C$50:$D$103,2)," "),"") ->  | AD21: 1 | AE21: 0 | AF21: 0 | AG21: 0
A22: =+A20+1 -> 2021-01-09 | B22: 1 | C22: 1900-01-07 | D22: 1 | E22: 0 | H22: : | J22: : | Q22: 0 | W22: =IF(V22<>"",SUM($AH$6:AH22)/10,"") ->  | Y22: =IF(X22>0,+X22/Daten!$I$18^2,"") ->  | AB22: 0 | AC22: =IF(WEEKDAY(A22)=1,IF(E22=1,VLOOKUP(AD22,Daten!$C$50:$D$103,2)," "),"") ->  | AD22: 1 | AE22: 0 | AF22: 0 | AG22: 0
A23: =+A22 -> 2021-01-09 | B23: 1 | C23: 1900-01-07 | D23: 2 | E23: 2 | H23: : | J23: : | Q23: 0 | W23: =IF(V23<>"",SUM($AH$6:AH23)/10,"") ->  | Y23: =IF(X23>0,+X23/Daten!$I$18^2,"") ->  | AB23: 0 | AC23: =IF(WEEKDAY(A23)=1,IF(E23=1,VLOOKUP(AD23,Daten!$C$50:$D$103,2)," "),"") ->  | AD23: 1 | AE23: 0 | AF23: 0 | AG23: 0
A24: =+A22+1 -> 2021-01-10 | B24: 1 | C24: 1900-01-01 | D24: 1 | E24: 0 | H24: : | J24: : | Q24: 0 | W24: =IF(V24<>"",SUM($AH$6:AH24)/10,"") ->  | Y24: =IF(X24>0,+X24/Daten!$I$18^2,"") ->  | AB24: 0 | AC24: =IF(WEEKDAY(A24)=1,IF(E24=1,VLOOKUP(AD24,Daten!$C$50:$D$103,2)," "),"") ->  | AD24: 1 | AE24: 0 | AF24: 0 | AG24: 0
A25: =+A24 -> 2021-01-10 | B25: 1 | C25: 1900-01-01 | D25: 2 | E25: 1 | H25: : | J25: : | Q25: 0 | W25: =IF(V25<>"",SUM($AH$6:AH25)/10,"") ->  | Y25: =IF(X25>0,+X25/Daten!$I$18^2,"") ->  | AB25: 0 | AC25: =IF(WEEKDAY(A25)=1,IF(E25=1,VLOOKUP(AD25,Daten!$C$50:$D$103,2)," "),"") -> 12 | AD25: 1 | AE25: 0 | AF25: 0 | AG25: 0
A26: =+A24+1 -> 2021-01-11 | B26: 1 | C26: 1900-01-02 | D26: 1 | E26: 0 | H26: : | J26: : | Q26: 0 | W26: =IF(V26<>"",SUM($AH$6:AH26)/10,"") ->  | Y26: =IF(X26>0,+X26/Daten!$I$18^2,"") ->  | AB26: 0 | AC26: =IF(WEEKDAY(A26)=1,IF(E26=1,VLOOKUP(AD26,Daten!$C$50:$D$103,2)," "),"") ->  | AD26: 2 | AE26: 0 | AF26: 0 | AG26: 0
A27: =+A26 -> 2021-01-11 | B27: 1 | C27: 1900-01-02 | D27: 2 | E27: 2 | H27: : | J27: : | Q27: 0 | W27: =IF(V27<>"",SUM($AH$6:AH27)/10,"") ->  | Y27: =IF(X27>0,+X27/Daten!$I$18^2,"") ->  | AB27: 0 | AC27: =IF(WEEKDAY(A27)=1,IF(E27=1,VLOOKUP(AD27,Daten!$C$50:$D$103,2)," "),"") ->  | AD27: 2 | AE27: 0 | AF27: 0 | AG27: 0
A28: =+A26+1 -> 2021-01-12 | B28: 1 | C28: 1900-01-03 | D28: 1 | E28: 0 | H28: : | J28: : | Q28: 0 | W28: =IF(V28<>"",SUM($AH$6:AH28)/10,"") ->  | Y28: =IF(X28>0,+X28/Daten!$I$18^2,"") ->  | AB28: 0 | AC28: =IF(WEEKDAY(A28)=1,IF(E28=1,VLOOKUP(AD28,Daten!$C$50:$D$103,2)," "),"") ->  | AD28: 2 | AE28: 0 | AF28: 0 | AG28: 0
A29: =+A28 -> 2021-01-12 | B29: 1 | C29: 1900-01-03 | D29: 2 | E29: 2 | H29: : | J29: : | Q29: 0 | W29: =IF(V29<>"",SUM($AH$6:AH29)/10,"") ->  | Y29: =IF(X29>0,+X29/Daten!$I$18^2,"") ->  | AB29: 0 | AC29: =IF(WEEKDAY(A29)=1,IF(E29=1,VLOOKUP(AD29,Daten!$C$50:$D$103,2)," "),"") ->  | AD29: 2 | AE29: 0 | AF29: 0 | AG29: 0
A30: =+A28+1 -> 2021-01-13 | B30: 1 | C30: 1900-01-04 | D30: 1 | E30: 0 | H30: : | J30: : | Q30: 0 | W30: =IF(V30<>"",SUM($AH$6:AH30)/10,"") ->  | Y30: =IF(X30>0,+X30/Daten!$I$18^2,"") ->  | AB30: 0 | AC30: =IF(WEEKDAY(A30)=1,IF(E30=1,VLOOKUP(AD30,Daten!$C$50:$D$103,2)," "),"") ->  | AD30: 2 | AE30: 0 | AF30: 0 | AG30: 0
A31: =+A30 -> 2021-01-13 | B31: 1 | C31: 1900-01-04 | D31: 2 | E31: 2 | H31: : | J31: : | Q31: 0 | W31: =IF(V31<>"",SUM($AH$6:AH31)/10,"") ->  | Y31: =IF(X31>0,+X31/Daten!$I$18^2,"") ->  | AB31: 0 | AC31: =IF(WEEKDAY(A31)=1,IF(E31=1,VLOOKUP(AD31,Daten!$C$50:$D$103,2)," "),"") ->  | AD31: 2 | AE31: 0 | AF31: 0 | AG31: 0
A32: =+A30+1 -> 2021-01-14 | B32: 1 | C32: 1900-01-05 | D32: 1 | E32: 0 | H32: : | J32: : | Q32: 0 | W32: =IF(V32<>"",SUM($AH$6:AH32)/10,"") ->  | Y32: =IF(X32>0,+X32/Daten!$I$18^2,"") ->  | AB32: 0 | AC32: =IF(WEEKDAY(A32)=1,IF(E32=1,VLOOKUP(AD32,Daten!$C$50:$D$103,2)," "),"") ->  | AD32: 2 | AE32: 0 | AF32: 0 | AG32: 0
A33: =+A32 -> 2021-01-14 | B33: 1 | C33: 1900-01-05 | D33: 2 | E33: 2 | H33: : | J33: : | Q33: 0 | W33: =IF(V33<>"",SUM($AH$6:AH33)/10,"") ->  | Y33: =IF(X33>0,+X33/Daten!$I$18^2,"") ->  | AB33: 0 | AC33: =IF(WEEKDAY(A33)=1,IF(E33=1,VLOOKUP(AD33,Daten!$C$50:$D$103,2)," "),"") ->  | AD33: 2 | AE33: 0 | AF33: 0 | AG33: 0
A34: =+A32+1 -> 2021-01-15 | B34: 1 | C34: 1900-01-06 | D34: 1 | E34: 0 | H34: : | J34: : | Q34: 0 | W34: =IF(V34<>"",SUM($AH$6:AH34)/10,"") ->  | Y34: =IF(X34>0,+X34/Daten!$I$18^2,"") ->  | AB34: 0 | AC34: =IF(WEEKDAY(A34)=1,IF(E34=1,VLOOKUP(AD34,Daten!$C$50:$D$103,2)," "),"") ->  | AD34: 2 | AE34: 0 | AF34: 0 | AG34: 0
A35: =+A34 -> 2021-01-15 | B35: 1 | C35: 1900-01-06 | D35: 2 | E35: 2 | H35: : | J35: : | Q35: 0 | W35: =IF(V35<>"",SUM($AH$6:AH35)/10,"") ->  | Y35: =IF(X35>0,+X35/Daten!$I$18^2,"") ->  | AB35: 0 | AC35: =IF(WEEKDAY(A35)=1,IF(E35=1,VLOOKUP(AD35,Daten!$C$50:$D$103,2)," "),"") ->  | AD35: 2 | AE35: 0 | AF35: 0 | AG35: 0
A36: =+A34+1 -> 2021-01-16 | B36: 1 | C36: 1900-01-07 | D36: 1 | E36: 0 | H36: : | J36: : | Q36: 0 | W36: =IF(V36<>"",SUM($AH$6:AH36)/10,"") ->  | Y36: =IF(X36>0,+X36/Daten!$I$18^2,"") ->  | AB36: 0 | AC36: =IF(WEEKDAY(A36)=1,IF(E36=1,VLOOKUP(AD36,Daten!$C$50:$D$103,2)," "),"") ->  | AD36: 2 | AE36: 0 | AF36: 0 | AG36: 0
A37: =+A36 -> 2021-01-16 | B37: 1 | C37: 1900-01-07 | D37: 2 | E37: 2 | H37: : | J37: : | Q37: 0 | W37: =IF(V37<>"",SUM($AH$6:AH37)/10,"") ->  | Y37: =IF(X37>0,+X37/Daten!$I$18^2,"") ->  | AB37: 0 | AC37: =IF(WEEKDAY(A37)=1,IF(E37=1,VLOOKUP(AD37,Daten!$C$50:$D$103,2)," "),"") ->  | AD37: 2 | AE37: 0 | AF37: 0 | AG37: 0
A38: =+A36+1 -> 2021-01-17 | B38: 1 | C38: 1900-01-01 | D38: 1 | E38: 0 | H38: : | J38: : | Q38: 0 | W38: =IF(V38<>"",SUM($AH$6:AH38)/10,"") ->  | Y38: =IF(X38>0,+X38/Daten!$I$18^2,"") ->  | AB38: 0 | AC38: =IF(WEEKDAY(A38)=1,IF(E38=1,VLOOKUP(AD38,Daten!$C$50:$D$103,2)," "),"") ->  | AD38: 2 | AE38: 0 | AF38: 0 | AG38: 0
A39: =+A38 -> 2021-01-17 | B39: 1 | C39: 1900-01-01 | D39: 2 | E39: 1 | H39: : | J39: : | Q39: 0 | W39: =IF(V39<>"",SUM($AH$6:AH39)/10,"") ->  | Y39: =IF(X39>0,+X39/Daten!$I$18^2,"") ->  | AB39: 0 | AC39: =IF(WEEKDAY(A39)=1,IF(E39=1,VLOOKUP(AD39,Daten!$C$50:$D$103,2)," "),"") -> 0 | AD39: 2 | AE39: 0 | AF39: 0 | AG39: 0
A40: =+A38+1 -> 2021-01-18 | B40: 1 | C40: 1900-01-02 | D40: 1 | E40: 0 | H40: : | J40: : | Q40: 0 | W40: =IF(V40<>"",SUM($AH$6:AH40)/10,"") ->  | Y40: =IF(X40>0,+X40/Daten!$I$18^2,"") ->  | AB40: 0 | AC40: =IF(WEEKDAY(A40)=1,IF(E40=1,VLOOKUP(AD40,Daten!$C$50:$D$103,2)," "),"") ->  | AD40: 3 | AE40: 0 | AF40: 0 | AG40: 0
A41: =+A40 -> 2021-01-18 | B41: 1 | C41: 1900-01-02 | D41: 2 | E41: 2 | H41: : | J41: : | Q41: 0 | W41: =IF(V41<>"",SUM($AH$6:AH41)/10,"") ->  | Y41: =IF(X41>0,+X41/Daten!$I$18^2,"") ->  | AB41: 0 | AC41: =IF(WEEKDAY(A41)=1,IF(E41=1,VLOOKUP(AD41,Daten!$C$50:$D$103,2)," "),"") ->  | AD41: 3 | AE41: 0 | AF41: 0 | AG41: 0
A42: =+A40+1 -> 2021-01-19 | B42: 1 | C42: 1900-01-03 | D42: 1 | E42: 0 | H42: : | J42: : | Q42: 0 | W42: =IF(V42<>"",SUM($AH$6:AH42)/10,"") ->  | Y42: =IF(X42>0,+X42/Daten!$I$18^2,"") ->  | AB42: 0 | AC42: =IF(WEEKDAY(A42)=1,IF(E42=1,VLOOKUP(AD42,Daten!$C$50:$D$103,2)," "),"") ->  | AD42: 3 | AE42: 0 | AF42: 0 | AG42: 0
A43: =+A42 -> 2021-01-19 | B43: 1 | C43: 1900-01-03 | D43: 2 | E43: 2 | H43: : | J43: : | Q43: 0 | W43: =IF(V43<>"",SUM($AH$6:AH43)/10,"") ->  | Y43: =IF(X43>0,+X43/Daten!$I$18^2,"") ->  | AB43: 0 | AC43: =IF(WEEKDAY(A43)=1,IF(E43=1,VLOOKUP(AD43,Daten!$C$50:$D$103,2)," "),"") ->  | AD43: 3 | AE43: 0 | AF43: 0 | AG43: 0
A44: =+A42+1 -> 2021-01-20 | B44: 1 | C44: 1900-01-04 | D44: 1 | E44: 0 | H44: : | J44: : | Q44: 0 | W44: =IF(V44<>"",SUM($AH$6:AH44)/10,"") ->  | Y44: =IF(X44>0,+X44/Daten!$I$18^2,"") ->  | AB44: 0 | AC44: =IF(WEEKDAY(A44)=1,IF(E44=1,VLOOKUP(AD44,Daten!$C$50:$D$103,2)," "),"") ->  | AD44: 3 | AE44: 0 | AF44: 0 | AG44: 0
A45: =+A44 -> 2021-01-20 | B45: 1 | C45: 1900-01-04 | D45: 2 | E45: 2 | H45: : | J45: : | Q45: 0 | W45: =IF(V45<>"",SUM($AH$6:AH45)/10,"") ->  | Y45: =IF(X45>0,+X45/Daten!$I$18^2,"") ->  | AB45: 0 | AC45: =IF(WEEKDAY(A45)=1,IF(E45=1,VLOOKUP(AD45,Daten!$C$50:$D$103,2)," "),"") ->  | AD45: 3 | AE45: 0 | AF45: 0 | AG45: 0
A46: =+A44+1 -> 2021-01-21 | B46: 1 | C46: 1900-01-05 | D46: 1 | E46: 0 | H46: : | J46: : | Q46: 0 | W46: =IF(V46<>"",SUM($AH$6:AH46)/10,"") ->  | Y46: =IF(X46>0,+X46/Daten!$I$18^2,"") ->  | AB46: 0 | AC46: =IF(WEEKDAY(A46)=1,IF(E46=1,VLOOKUP(AD46,Daten!$C$50:$D$103,2)," "),"") ->  | AD46: 3 | AE46: 0 | AF46: 0 | AG46: 0
A47: =+A46 -> 2021-01-21 | B47: 1 | C47: 1900-01-05 | D47: 2 | E47: 2 | H47: : | J47: : | Q47: 0 | W47: =IF(V47<>"",SUM($AH$6:AH47)/10,"") ->  | Y47: =IF(X47>0,+X47/Daten!$I$18^2,"") ->  | AB47: 0 | AC47: =IF(WEEKDAY(A47)=1,IF(E47=1,VLOOKUP(AD47,Daten!$C$50:$D$103,2)," "),"") ->  | AD47: 3 | AE47: 0 | AF47: 0 | AG47: 0
A48: =+A46+1 -> 2021-01-22 | B48: 1 | C48: 1900-01-06 | D48: 1 | E48: 0 | H48: : | J48: : | Q48: 0 | W48: =IF(V48<>"",SUM($AH$6:AH48)/10,"") ->  | Y48: =IF(X48>0,+X48/Daten!$I$18^2,"") ->  | AB48: 0 | AC48: =IF(WEEKDAY(A48)=1,IF(E48=1,VLOOKUP(AD48,Daten!$C$50:$D$103,2)," "),"") ->  | AD48: 3 | AE48: 0 | AF48: 0 | AG48: 0
A49: =+A48 -> 2021-01-22 | B49: 1 | C49: 1900-01-06 | D49: 2 | E49: 2 | H49: : | J49: : | Q49: 0 | W49: =IF(V49<>"",SUM($AH$6:AH49)/10,"") ->  | Y49: =IF(X49>0,+X49/Daten!$I$18^2,"") ->  | AB49: 0 | AC49: =IF(WEEKDAY(A49)=1,IF(E49=1,VLOOKUP(AD49,Daten!$C$50:$D$103,2)," "),"") ->  | AD49: 3 | AE49: 0 | AF49: 0 | AG49: 0
A50: =+A48+1 -> 2021-01-23 | B50: 1 | C50: 1900-01-07 | D50: 1 | E50: 0 | H50: : | J50: : | Q50: 0 | W50: =IF(V50<>"",SUM($AH$6:AH50)/10,"") ->  | Y50: =IF(X50>0,+X50/Daten!$I$18^2,"") ->  | AB50: 0 | AC50: =IF(WEEKDAY(A50)=1,IF(E50=1,VLOOKUP(AD50,Daten!$C$50:$D$103,2)," "),"") ->  | AD50: 3 | AE50: 0 | AF50: 0 | AG50: 0
A51: =+A50 -> 2021-01-23 | B51: 1 | C51: 1900-01-07 | D51: 2 | E51: 2 | H51: : | J51: : | Q51: 0 | W51: =IF(V51<>"",SUM($AH$6:AH51)/10,"") ->  | Y51: =IF(X51>0,+X51/Daten!$I$18^2,"") ->  | AB51: 0 | AC51: =IF(WEEKDAY(A51)=1,IF(E51=1,VLOOKUP(AD51,Daten!$C$50:$D$103,2)," "),"") ->  | AD51: 3 | AE51: 0 | AF51: 0 | AG51: 0
A52: =+A50+1 -> 2021-01-24 | B52: 1 | C52: 1900-01-01 | D52: 1 | E52: 0 | H52: : | J52: : | Q52: 0 | W52: =IF(V52<>"",SUM($AH$6:AH52)/10,"") ->  | Y52: =IF(X52>0,+X52/Daten!$I$18^2,"") ->  | AB52: 0 | AC52: =IF(WEEKDAY(A52)=1,IF(E52=1,VLOOKUP(AD52,Daten!$C$50:$D$103,2)," "),"") ->  | AD52: 3 | AE52: 0 | AF52: 0 | AG52: 0
A53: =+A52 -> 2021-01-24 | B53: 1 | C53: 1900-01-01 | D53: 2 | E53: 1 | H53: : | J53: : | Q53: 0 | W53: =IF(V53<>"",SUM($AH$6:AH53)/10,"") ->  | Y53: =IF(X53>0,+X53/Daten!$I$18^2,"") ->  | AB53: 0 | AC53: =IF(WEEKDAY(A53)=1,IF(E53=1,VLOOKUP(AD53,Daten!$C$50:$D$103,2)," "),"") -> 0 | AD53: 3 | AE53: 0 | AF53: 0 | AG53: 0
A54: =+A52+1 -> 2021-01-25 | B54: 1 | C54: 1900-01-02 | D54: 1 | E54: 0 | H54: : | J54: : | Q54: 0 | W54: =IF(V54<>"",SUM($AH$6:AH54)/10,"") ->  | Y54: =IF(X54>0,+X54/Daten!$I$18^2,"") ->  | AB54: 0 | AC54: =IF(WEEKDAY(A54)=1,IF(E54=1,VLOOKUP(AD54,Daten!$C$50:$D$103,2)," "),"") ->  | AD54: 4 | AE54: 0 | AF54: 0 | AG54: 0
A55: =+A54 -> 2021-01-25 | B55: 1 | C55: 1900-01-02 | D55: 2 | E55: 2 | H55: : | J55: : | Q55: 0 | W55: =IF(V55<>"",SUM($AH$6:AH55)/10,"") ->  | Y55: =IF(X55>0,+X55/Daten!$I$18^2,"") ->  | AB55: 0 | AC55: =IF(WEEKDAY(A55)=1,IF(E55=1,VLOOKUP(AD55,Daten!$C$50:$D$103,2)," "),"") ->  | AD55: 4 | AE55: 0 | AF55: 0 | AG55: 0
A56: =+A54+1 -> 2021-01-26 | B56: 1 | C56: 1900-01-03 | D56: 1 | E56: 0 | H56: : | J56: : | Q56: 0 | W56: =IF(V56<>"",SUM($AH$6:AH56)/10,"") ->  | Y56: =IF(X56>0,+X56/Daten!$I$18^2,"") ->  | AB56: 0 | AC56: =IF(WEEKDAY(A56)=1,IF(E56=1,VLOOKUP(AD56,Daten!$C$50:$D$103,2)," "),"") ->  | AD56: 4 | AE56: 0 | AF56: 0 | AG56: 0
A57: =+A56 -> 2021-01-26 | B57: 1 | C57: 1900-01-03 | D57: 2 | E57: 2 | H57: : | J57: : | Q57: 0 | W57: =IF(V57<>"",SUM($AH$6:AH57)/10,"") ->  | Y57: =IF(X57>0,+X57/Daten!$I$18^2,"") ->  | AB57: 0 | AC57: =IF(WEEKDAY(A57)=1,IF(E57=1,VLOOKUP(AD57,Daten!$C$50:$D$103,2)," "),"") ->  | AD57: 4 | AE57: 0 | AF57: 0 | AG57: 0
A58: =+A56+1 -> 2021-01-27 | B58: 1 | C58: 1900-01-04 | D58: 1 | E58: 0 | H58: : | J58: : | Q58: 0 | W58: =IF(V58<>"",SUM($AH$6:AH58)/10,"") ->  | Y58: =IF(X58>0,+X58/Daten!$I$18^2,"") ->  | AB58: 0 | AC58: =IF(WEEKDAY(A58)=1,IF(E58=1,VLOOKUP(AD58,Daten!$C$50:$D$103,2)," "),"") ->  | AD58: 4 | AE58: 0 | AF58: 0 | AG58: 0
A59: =+A58 -> 2021-01-27 | B59: 1 | C59: 1900-01-04 | D59: 2 | E59: 2 | H59: : | J59: : | Q59: 0 | W59: =IF(V59<>"",SUM($AH$6:AH59)/10,"") ->  | Y59: =IF(X59>0,+X59/Daten!$I$18^2,"") ->  | AB59: 0 | AC59: =IF(WEEKDAY(A59)=1,IF(E59=1,VLOOKUP(AD59,Daten!$C$50:$D$103,2)," "),"") ->  | AD59: 4 | AE59: 0 | AF59: 0 | AG59: 0
A60: =+A58+1 -> 2021-01-28 | B60: 1 | C60: 1900-01-05 | D60: 1 | E60: 0 | H60: : | J60: : | Q60: 0 | W60: =IF(V60<>"",SUM($AH$6:AH60)/10,"") ->  | Y60: =IF(X60>0,+X60/Daten!$I$18^2,"") ->  | AB60: 0 | AC60: =IF(WEEKDAY(A60)=1,IF(E60=1,VLOOKUP(AD60,Daten!$C$50:$D$103,2)," "),"") ->  | AD60: 4 | AE60: 0 | AF60: 0 | AG60: 0
A61: =+A60 -> 2021-01-28 | B61: 1 | C61: 1900-01-05 | D61: 2 | E61: 2 | H61: : | J61: : | Q61: 0 | W61: =IF(V61<>"",SUM($AH$6:AH61)/10,"") ->  | Y61: =IF(X61>0,+X61/Daten!$I$18^2,"") ->  | AB61: 0 | AC61: =IF(WEEKDAY(A61)=1,IF(E61=1,VLOOKUP(AD61,Daten!$C$50:$D$103,2)," "),"") ->  | AD61: 4 | AE61: 0 | AF61: 0 | AG61: 0
A62: =+A60+1 -> 2021-01-29 | B62: 1 | C62: 1900-01-06 | D62: 1 | E62: 0 | H62: : | J62: : | Q62: 0 | W62: =IF(V62<>"",SUM($AH$6:AH62)/10,"") ->  | Y62: =IF(X62>0,+X62/Daten!$I$18^2,"") ->  | AB62: 0 | AC62: =IF(WEEKDAY(A62)=1,IF(E62=1,VLOOKUP(AD62,Daten!$C$50:$D$103,2)," "),"") ->  | AD62: 4 | AE62: 0 | AF62: 0 | AG62: 0
A63: =+A62 -> 2021-01-29 | B63: 1 | C63: 1900-01-06 | D63: 2 | E63: 2 | H63: : | J63: : | Q63: 0 | W63: =IF(V63<>"",SUM($AH$6:AH63)/10,"") ->  | Y63: =IF(X63>0,+X63/Daten!$I$18^2,"") ->  | AB63: 0 | AC63: =IF(WEEKDAY(A63)=1,IF(E63=1,VLOOKUP(AD63,Daten!$C$50:$D$103,2)," "),"") ->  | AD63: 4 | AE63: 0 | AF63: 0 | AG63: 0
A64: =+A62+1 -> 2021-01-30 | B64: 1 | C64: 1900-01-07 | D64: 1 | E64: 0 | H64: : | J64: : | Q64: 0 | W64: =IF(V64<>"",SUM($AH$6:AH64)/10,"") ->  | Y64: =IF(X64>0,+X64/Daten!$I$18^2,"") ->  | AB64: 0 | AC64: =IF(WEEKDAY(A64)=1,IF(E64=1,VLOOKUP(AD64,Daten!$C$50:$D$103,2)," "),"") ->  | AD64: 4 | AE64: 0 | AF64: 0 | AG64: 0
A65: =+A64 -> 2021-01-30 | B65: 1 | C65: 1900-01-07 | D65: 2 | E65: 2 | H65: : | J65: : | Q65: 0 | W65: =IF(V65<>"",SUM($AH$6:AH65)/10,"") ->  | Y65: =IF(X65>0,+X65/Daten!$I$18^2,"") ->  | AB65: 0 | AC65: =IF(WEEKDAY(A65)=1,IF(E65=1,VLOOKUP(AD65,Daten!$C$50:$D$103,2)," "),"") ->  | AD65: 4 | AE65: 0 | AF65: 0 | AG65: 0
A66: =+A64+1 -> 2021-01-31 | B66: 1 | C66: 1900-01-01 | D66: 1 | E66: 0 | H66: : | J66: : | Q66: 0 | W66: =IF(V66<>"",SUM($AH$6:AH66)/10,"") ->  | Y66: =IF(X66>0,+X66/Daten!$I$18^2,"") ->  | AB66: 0 | AC66: =IF(WEEKDAY(A66)=1,IF(E66=1,VLOOKUP(AD66,Daten!$C$50:$D$103,2)," "),"") ->  | AD66: 4 | AE66: 0 | AF66: 0 | AG66: 0
A67: =+A66 -> 2021-01-31 | B67: 1 | C67: 1900-01-01 | D67: 2 | E67: 1 | H67: : | J67: : | Q67: 0 | W67: =IF(V67<>"",SUM($AH$6:AH67)/10,"") ->  | Y67: =IF(X67>0,+X67/Daten!$I$18^2,"") ->  | AB67: 0 | AC67: =IF(WEEKDAY(A67)=1,IF(E67=1,VLOOKUP(AD67,Daten!$C$50:$D$103,2)," "),"") -> 0 | AD67: 4 | AE67: 0 | AF67: 0 | AG67: 0
A68: =+A66+1 -> 2021-02-01 | B68: 2 | C68: 1900-01-02 | D68: 1 | E68: 0 | H68: : | J68: : | Q68: 0 | W68: =IF(V68<>"",SUM($AH$6:AH68)/10,"") ->  | Y68: =IF(X68>0,+X68/Daten!$I$18^2,"") ->  | AB68: 0 | AC68: =IF(WEEKDAY(A68)=1,IF(E68=1,VLOOKUP(AD68,Daten!$C$50:$D$103,2)," "),"") ->  | AD68: 5 | AE68: 0 | AF68: 0 | AG68: 0
A69: =+A68 -> 2021-02-01 | B69: 2 | C69: 1900-01-02 | D69: 2 | E69: 2 | H69: : | J69: : | Q69: 0 | W69: =IF(V69<>"",SUM($AH$6:AH69)/10,"") ->  | Y69: =IF(X69>0,+X69/Daten!$I$18^2,"") ->  | AB69: 0 | AC69: =IF(WEEKDAY(A69)=1,IF(E69=1,VLOOKUP(AD69,Daten!$C$50:$D$103,2)," "),"") ->  | AD69: 5 | AE69: 0 | AF69: 0 | AG69: 0
A70: =+A68+1 -> 2021-02-02 | B70: 2 | C70: 1900-01-03 | D70: 1 | E70: 0 | H70: : | J70: : | Q70: =IF(maxhf<100,0,IF(ISBLANK(P70)="WAHR",P70,P70/maxhf)*100) -> 0 | R70: =IF(F70>0,IF(P70>0,+F70*(F70*1000/(G70*60+I70+K70/60))/(maxhf-P70)*(maxhf/220),""),"") ->  | W70: =IF(V70<>"",SUM($AH$6:AH70)/10,"") ->  | Y70: =IF(X70>0,+X70/Daten!$I$18^2,"") ->  | AB70: 0 | AC70: =IF(WEEKDAY(A70)=1,IF(E70=1,VLOOKUP(AD70,Daten!$C$50:$D$103,2)," "),"") ->  | AD70: 5 | AE70: =IF(F70>0,IF(D70=2,IF((AA69+AA70)>0,1,0),0),0) -> 0 | AF70: =+T70/10*F70 -> 0 | AG70: =IF(COUNTBLANK(T70)=1,0,+U70/10*F70) -> 0
A71: =+A70 -> 2021-02-02 | B71: =MONTH(A71) -> 2 | C71: =WEEKDAY(A71) -> 1900-01-03 | D71: 2 | E71: =IF(D71=2,IF(C71=1,1,2),0) -> 2 | H71: : | J71: : | L71: =IF((+G71*60+I71+K71/60)>0,G71*60+I71+K71/60," ") ->  | M71: =IF(+F71>0,+L71/F71/24/60," ") ->  | N71: =IF(F71>0,+F71/(L71/60),"") ->  | Q71: 0 | W71: =IF(V71<>"",SUM($AH$6:AH71)/10,"") ->  | Y71: =IF(X71>0,+X71/Daten!$I$18^2,"") ->  | AB71: =IF(D71=2,+F71+F70,0) -> 0 | AC71: =IF(WEEKDAY(A71)=1,IF(E71=1,VLOOKUP(AD71,Daten!$C$50:$D$103,2)," "),"") ->  | AD71: 5 | AE71: 0 | AF71: 0 | AG71: 0 | AH71: =IF(V71<>"",10,"") -> 
A72: =+A70+1 -> 2021-02-03 | B72: 2 | C72: 1900-01-04 | D72: 1 | E72: 0 | H72: : | J72: : | Q72: 0 | W72: =IF(V72<>"",SUM($AH$6:AH72)/10,"") ->  | Y72: =IF(X72>0,+X72/Daten!$I$18^2,"") ->  | AB72: 0 | AC72: =IF(WEEKDAY(A72)=1,IF(E72=1,VLOOKUP(AD72,Daten!$C$50:$D$103,2)," "),"") ->  | AD72: =IF(WEEKDAY(A72)=2,IF(D72=1,AD71+1,AD71),AD71) -> 5 | AE72: 0 | AF72: 0 | AG72: 0
A73: =+A72 -> 2021-02-03 | B73: 2 | C73: 1900-01-04 | D73: 2 | E73: 2 | H73: : | J73: : | Q73: 0 | W73: =IF(V73<>"",SUM($AH$6:AH73)/10,"") ->  | Y73: =IF(X73>0,+X73/Daten!$I$18^2,"") ->  | AB73: 0 | AC73: =IF(WEEKDAY(A73)=1,IF(E73=1,VLOOKUP(AD73,Daten!$C$50:$D$103,2)," "),"") ->  | AD73: 5 | AE73: 0 | AF73: 0 | AG73: 0
A74: =+A72+1 -> 2021-02-04 | B74: 2 | C74: 1900-01-05 | D74: 1 | E74: 0 | H74: : | J74: : | Q74: 0 | W74: =IF(V74<>"",SUM($AH$6:AH74)/10,"") ->  | Y74: =IF(X74>0,+X74/Daten!$I$18^2,"") ->  | AB74: 0 | AC74: =IF(WEEKDAY(A74)=1,IF(E74=1,VLOOKUP(AD74,Daten!$C$50:$D$103,2)," "),"") ->  | AD74: 5 | AE74: 0 | AF74: 0 | AG74: 0
A75: =+A74 -> 2021-02-04 | B75: 2 | C75: 1900-01-05 | D75: 2 | E75: 2 | H75: : | J75: : | Q75: 0 | W75: =IF(V75<>"",SUM($AH$6:AH75)/10,"") ->  | Y75: =IF(X75>0,+X75/Daten!$I$18^2,"") ->  | AB75: 0 | AC75: =IF(WEEKDAY(A75)=1,IF(E75=1,VLOOKUP(AD75,Daten!$C$50:$D$103,2)," "),"") ->  | AD75: 5 | AE75: 0 | AF75: 0 | AG75: 0
A76: =+A74+1 -> 2021-02-05 | B76: 2 | C76: 1900-01-06 | D76: 1 | E76: 0 | H76: : | J76: : | Q76: 0 | W76: =IF(V76<>"",SUM($AH$6:AH76)/10,"") ->  | Y76: =IF(X76>0,+X76/Daten!$I$18^2,"") ->  | AB76: 0 | AC76: =IF(WEEKDAY(A76)=1,IF(E76=1,VLOOKUP(AD76,Daten!$C$50:$D$103,2)," "),"") ->  | AD76: 5 | AE76: 0 | AF76: 0 | AG76: 0
A77: =+A76 -> 2021-02-05 | B77: 2 | C77: 1900-01-06 | D77: 2 | E77: 2 | H77: : | J77: : | Q77: 0 | W77: =IF(V77<>"",SUM($AH$6:AH77)/10,"") ->  | Y77: =IF(X77>0,+X77/Daten!$I$18^2,"") ->  | AB77: 0 | AC77: =IF(WEEKDAY(A77)=1,IF(E77=1,VLOOKUP(AD77,Daten!$C$50:$D$103,2)," "),"") ->  | AD77: 5 | AE77: 0 | AF77: 0 | AG77: 0
A78: =+A76+1 -> 2021-02-06 | B78: 2 | C78: 1900-01-07 | D78: 1 | E78: 0 | H78: : | J78: : | Q78: 0 | W78: =IF(V78<>"",SUM($AH$6:AH78)/10,"") ->  | Y78: =IF(X78>0,+X78/Daten!$I$18^2,"") ->  | AB78: 0 | AC78: =IF(WEEKDAY(A78)=1,IF(E78=1,VLOOKUP(AD78,Daten!$C$50:$D$103,2)," "),"") ->  | AD78: 5 | AE78: 0 | AF78: 0 | AG78: 0
A79: =+A78 -> 2021-02-06 | B79: 2 | C79: 1900-01-07 | D79: 2 | E79: 2 | H79: : | J79: : | Q79: 0 | W79: =IF(V79<>"",SUM($AH$6:AH79)/10,"") ->  | Y79: =IF(X79>0,+X79/Daten!$I$18^2,"") ->  | AB79: 0 | AC79: =IF(WEEKDAY(A79)=1,IF(E79=1,VLOOKUP(AD79,Daten!$C$50:$D$103,2)," "),"") ->  | AD79: 5 | AE79: 0 | AF79: 0 | AG79: 0
A80: =+A78+1 -> 2021-02-07 | B80: 2 | C80: 1900-01-01 | D80: 1 | E80: 0 | H80: : | J80: : | Q80: 0 | W80: =IF(V80<>"",SUM($AH$6:AH80)/10,"") ->  | Y80: =IF(X80>0,+X80/Daten!$I$18^2,"") ->  | AB80: 0 | AC80: =IF(WEEKDAY(A80)=1,IF(E80=1,VLOOKUP(AD80,Daten!$C$50:$D$103,2)," "),"") ->  | AD80: 5 | AE80: 0 | AF80: 0 | AG80: 0
A81: =+A80 -> 2021-02-07 | B81: 2 | C81: 1900-01-01 | D81: 2 | E81: 1 | H81: : | J81: : | Q81: 0 | W81: =IF(V81<>"",SUM($AH$6:AH81)/10,"") ->  | Y81: =IF(X81>0,+X81/Daten!$I$18^2,"") ->  | AB81: 0 | AC81: =IF(WEEKDAY(A81)=1,IF(E81=1,VLOOKUP(AD81,Daten!$C$50:$D$103,2)," "),"") -> 0 | AD81: 5 | AE81: 0 | AF81: 0 | AG81: 0
A82: =+A80+1 -> 2021-02-08 | B82: 2 | C82: 1900-01-02 | D82: 1 | E82: 0 | H82: : | J82: : | Q82: 0 | W82: =IF(V82<>"",SUM($AH$6:AH82)/10,"") ->  | Y82: =IF(X82>0,+X82/Daten!$I$18^2,"") ->  | AB82: 0 | AC82: =IF(WEEKDAY(A82)=1,IF(E82=1,VLOOKUP(AD82,Daten!$C$50:$D$103,2)," "),"") ->  | AD82: 6 | AE82: 0 | AF82: 0 | AG82: 0
A83: =+A82 -> 2021-02-08 | B83: 2 | C83: 1900-01-02 | D83: 2 | E83: 2 | H83: : | J83: : | Q83: 0 | W83: =IF(V83<>"",SUM($AH$6:AH83)/10,"") ->  | Y83: =IF(X83>0,+X83/Daten!$I$18^2,"") ->  | AB83: 0 | AC83: =IF(WEEKDAY(A83)=1,IF(E83=1,VLOOKUP(AD83,Daten!$C$50:$D$103,2)," "),"") ->  | AD83: 6 | AE83: 0 | AF83: 0 | AG83: 0
A84: =+A82+1 -> 2021-02-09 | B84: 2 | C84: 1900-01-03 | D84: 1 | E84: 0 | H84: : | J84: : | Q84: 0 | W84: =IF(V84<>"",SUM($AH$6:AH84)/10,"") ->  | Y84: =IF(X84>0,+X84/Daten!$I$18^2,"") ->  | AB84: 0 | AC84: =IF(WEEKDAY(A84)=1,IF(E84=1,VLOOKUP(AD84,Daten!$C$50:$D$103,2)," "),"") ->  | AD84: 6 | AE84: 0 | AF84: 0 | AG84: 0
A85: =+A84 -> 2021-02-09 | B85: 2 | C85: 1900-01-03 | D85: 2 | E85: 2 | H85: : | J85: : | Q85: 0 | W85: =IF(V85<>"",SUM($AH$6:AH85)/10,"") ->  | Y85: =IF(X85>0,+X85/Daten!$I$18^2,"") ->  | AB85: 0 | AC85: =IF(WEEKDAY(A85)=1,IF(E85=1,VLOOKUP(AD85,Daten!$C$50:$D$103,2)," "),"") ->  | AD85: 6 | AE85: 0 | AF85: 0 | AG85: 0
A86: =+A84+1 -> 2021-02-10 | B86: 2 | C86: 1900-01-04 | D86: 1 | E86: 0 | H86: : | J86: : | Q86: 0 | W86: =IF(V86<>"",SUM($AH$6:AH86)/10,"") ->  | Y86: =IF(X86>0,+X86/Daten!$I$18^2,"") ->  | AB86: 0 | AC86: =IF(WEEKDAY(A86)=1,IF(E86=1,VLOOKUP(AD86,Daten!$C$50:$D$103,2)," "),"") ->  | AD86: 6 | AE86: 0 | AF86: 0 | AG86: 0
A87: =+A86 -> 2021-02-10 | B87: 2 | C87: 1900-01-04 | D87: 2 | E87: 2 | H87: : | J87: : | Q87: 0 | W87: =IF(V87<>"",SUM($AH$6:AH87)/10,"") ->  | Y87: =IF(X87>0,+X87/Daten!$I$18^2,"") ->  | AB87: 0 | AC87: =IF(WEEKDAY(A87)=1,IF(E87=1,VLOOKUP(AD87,Daten!$C$50:$D$103,2)," "),"") ->  | AD87: 6 | AE87: 0 | AF87: 0 | AG87: 0
A88: =+A86+1 -> 2021-02-11 | B88: 2 | C88: 1900-01-05 | D88: 1 | E88: 0 | H88: : | J88: : | Q88: 0 | W88: =IF(V88<>"",SUM($AH$6:AH88)/10,"") ->  | Y88: =IF(X88>0,+X88/Daten!$I$18^2,"") ->  | AB88: 0 | AC88: =IF(WEEKDAY(A88)=1,IF(E88=1,VLOOKUP(AD88,Daten!$C$50:$D$103,2)," "),"") ->  | AD88: 6 | AE88: 0 | AF88: 0 | AG88: 0
A89: =+A88 -> 2021-02-11 | B89: 2 | C89: 1900-01-05 | D89: 2 | E89: 2 | H89: : | J89: : | Q89: 0 | W89: =IF(V89<>"",SUM($AH$6:AH89)/10,"") ->  | Y89: =IF(X89>0,+X89/Daten!$I$18^2,"") ->  | AB89: 0 | AC89: =IF(WEEKDAY(A89)=1,IF(E89=1,VLOOKUP(AD89,Daten!$C$50:$D$103,2)," "),"") ->  | AD89: 6 | AE89: 0 | AF89: 0 | AG89: 0
A90: =+A88+1 -> 2021-02-12 | B90: 2 | C90: 1900-01-06 | D90: 1 | E90: 0 | H90: : | J90: : | Q90: 0 | W90: =IF(V90<>"",SUM($AH$6:AH90)/10,"") ->  | Y90: =IF(X90>0,+X90/Daten!$I$18^2,"") ->  | AB90: 0 | AC90: =IF(WEEKDAY(A90)=1,IF(E90=1,VLOOKUP(AD90,Daten!$C$50:$D$103,2)," "),"") ->  | AD90: 6 | AE90: 0 | AF90: 0 | AG90: 0
A91: =+A90 -> 2021-02-12 | B91: 2 | C91: 1900-01-06 | D91: 2 | E91: 2 | H91: : | J91: : | Q91: 0 | W91: =IF(V91<>"",SUM($AH$6:AH91)/10,"") ->  | Y91: =IF(X91>0,+X91/Daten!$I$18^2,"") ->  | AB91: 0 | AC91: =IF(WEEKDAY(A91)=1,IF(E91=1,VLOOKUP(AD91,Daten!$C$50:$D$103,2)," "),"") ->  | AD91: 6 | AE91: 0 | AF91: 0 | AG91: 0
A92: =+A90+1 -> 2021-02-13 | B92: 2 | C92: 1900-01-07 | D92: 1 | E92: 0 | H92: : | J92: : | Q92: 0 | W92: =IF(V92<>"",SUM($AH$6:AH92)/10,"") ->  | Y92: =IF(X92>0,+X92/Daten!$I$18^2,"") ->  | AB92: 0 | AC92: =IF(WEEKDAY(A92)=1,IF(E92=1,VLOOKUP(AD92,Daten!$C$50:$D$103,2)," "),"") ->  | AD92: 6 | AE92: 0 | AF92: 0 | AG92: 0
A93: =+A92 -> 2021-02-13 | B93: 2 | C93: 1900-01-07 | D93: 2 | E93: 2 | H93: : | J93: : | Q93: 0 | W93: =IF(V93<>"",SUM($AH$6:AH93)/10,"") ->  | Y93: =IF(X93>0,+X93/Daten!$I$18^2,"") ->  | AB93: 0 | AC93: =IF(WEEKDAY(A93)=1,IF(E93=1,VLOOKUP(AD93,Daten!$C$50:$D$103,2)," "),"") ->  | AD93: 6 | AE93: 0 | AF93: 0 | AG93: 0
A94: =+A92+1 -> 2021-02-14 | B94: 2 | C94: 1900-01-01 | D94: 1 | E94: 0 | H94: : | J94: : | Q94: 0 | W94: =IF(V94<>"",SUM($AH$6:AH94)/10,"") ->  | Y94: =IF(X94>0,+X94/Daten!$I$18^2,"") ->  | AB94: 0 | AC94: =IF(WEEKDAY(A94)=1,IF(E94=1,VLOOKUP(AD94,Daten!$C$50:$D$103,2)," "),"") ->  | AD94: 6 | AE94: 0 | AF94: 0 | AG94: 0
A95: =+A94 -> 2021-02-14 | B95: 2 | C95: 1900-01-01 | D95: 2 | E95: 1 | H95: : | J95: : | Q95: 0 | W95: =IF(V95<>"",SUM($AH$6:AH95)/10,"") ->  | Y95: =IF(X95>0,+X95/Daten!$I$18^2,"") ->  | AB95: 0 | AC95: =IF(WEEKDAY(A95)=1,IF(E95=1,VLOOKUP(AD95,Daten!$C$50:$D$103,2)," "),"") -> 0 | AD95: 6 | AE95: 0 | AF95: 0 | AG95: 0
A96: =+A94+1 -> 2021-02-15 | B96: 2 | C96: 1900-01-02 | D96: 1 | E96: 0 | H96: : | J96: : | Q96: 0 | W96: =IF(V96<>"",SUM($AH$6:AH96)/10,"") ->  | Y96: =IF(X96>0,+X96/Daten!$I$18^2,"") ->  | AB96: 0 | AC96: =IF(WEEKDAY(A96)=1,IF(E96=1,VLOOKUP(AD96,Daten!$C$50:$D$103,2)," "),"") ->  | AD96: 7 | AE96: 0 | AF96: 0 | AG96: 0
A97: =+A96 -> 2021-02-15 | B97: 2 | C97: 1900-01-02 | D97: 2 | E97: 2 | H97: : | J97: : | Q97: 0 | W97: =IF(V97<>"",SUM($AH$6:AH97)/10,"") ->  | Y97: =IF(X97>0,+X97/Daten!$I$18^2,"") ->  | AB97: 0 | AC97: =IF(WEEKDAY(A97)=1,IF(E97=1,VLOOKUP(AD97,Daten!$C$50:$D$103,2)," "),"") ->  | AD97: 7 | AE97: 0 | AF97: 0 | AG97: 0
A98: =+A96+1 -> 2021-02-16 | B98: 2 | C98: 1900-01-03 | D98: 1 | E98: 0 | H98: : | J98: : | Q98: 0 | W98: =IF(V98<>"",SUM($AH$6:AH98)/10,"") ->  | Y98: =IF(X98>0,+X98/Daten!$I$18^2,"") ->  | AB98: 0 | AC98: =IF(WEEKDAY(A98)=1,IF(E98=1,VLOOKUP(AD98,Daten!$C$50:$D$103,2)," "),"") ->  | AD98: 7 | AE98: 0 | AF98: 0 | AG98: 0
A99: =+A98 -> 2021-02-16 | B99: 2 | C99: 1900-01-03 | D99: 2 | E99: 2 | H99: : | J99: : | Q99: 0 | W99: =IF(V99<>"",SUM($AH$6:AH99)/10,"") ->  | Y99: =IF(X99>0,+X99/Daten!$I$18^2,"") ->  | AB99: 0 | AC99: =IF(WEEKDAY(A99)=1,IF(E99=1,VLOOKUP(AD99,Daten!$C$50:$D$103,2)," "),"") ->  | AD99: 7 | AE99: 0 | AF99: 0 | AG99: 0
A100: =+A98+1 -> 2021-02-17 | B100: 2 | C100: 1900-01-04 | D100: 1 | E100: 0 | H100: : | J100: : | Q100: 0 | W100: =IF(V100<>"",SUM($AH$6:AH100)/10,"") ->  | Y100: =IF(X100>0,+X100/Daten!$I$18^2,"") ->  | AB100: 0 | AC100: =IF(WEEKDAY(A100)=1,IF(E100=1,VLOOKUP(AD100,Daten!$C$50:$D$103,2)," "),"") ->  | AD100: 7 | AE100: 0 | AF100: 0 | AG100: 0
A101: =+A100 -> 2021-02-17 | B101: 2 | C101: 1900-01-04 | D101: 2 | E101: 2 | H101: : | J101: : | Q101: 0 | W101: =IF(V101<>"",SUM($AH$6:AH101)/10,"") ->  | Y101: =IF(X101>0,+X101/Daten!$I$18^2,"") ->  | AB101: 0 | AC101: =IF(WEEKDAY(A101)=1,IF(E101=1,VLOOKUP(AD101,Daten!$C$50:$D$103,2)," "),"") ->  | AD101: 7 | AE101: 0 | AF101: 0 | AG101: 0
A102: =+A100+1 -> 2021-02-18 | B102: 2 | C102: 1900-01-05 | D102: 1 | E102: 0 | H102: : | J102: : | Q102: 0 | W102: =IF(V102<>"",SUM($AH$6:AH102)/10,"") ->  | Y102: =IF(X102>0,+X102/Daten!$I$18^2,"") ->  | AB102: 0 | AC102: =IF(WEEKDAY(A102)=1,IF(E102=1,VLOOKUP(AD102,Daten!$C$50:$D$103,2)," "),"") ->  | AD102: 7 | AE102: 0 | AF102: 0 | AG102: 0
A103: =+A102 -> 2021-02-18 | B103: 2 | C103: 1900-01-05 | D103: 2 | E103: 2 | H103: : | J103: : | Q103: 0 | W103: =IF(V103<>"",SUM($AH$6:AH103)/10,"") ->  | Y103: =IF(X103>0,+X103/Daten!$I$18^2,"") ->  | AB103: 0 | AC103: =IF(WEEKDAY(A103)=1,IF(E103=1,VLOOKUP(AD103,Daten!$C$50:$D$103,2)," "),"") ->  | AD103: 7 | AE103: 0 | AF103: 0 | AG103: 0
A104: =+A102+1 -> 2021-02-19 | B104: 2 | C104: 1900-01-06 | D104: 1 | E104: 0 | H104: : | J104: : | Q104: 0 | W104: =IF(V104<>"",SUM($AH$6:AH104)/10,"") ->  | Y104: =IF(X104>0,+X104/Daten!$I$18^2,"") ->  | AB104: 0 | AC104: =IF(WEEKDAY(A104)=1,IF(E104=1,VLOOKUP(AD104,Daten!$C$50:$D$103,2)," "),"") ->  | AD104: 7 | AE104: 0 | AF104: 0 | AG104: 0
A105: =+A104 -> 2021-02-19 | B105: 2 | C105: 1900-01-06 | D105: 2 | E105: 2 | H105: : | J105: : | Q105: 0 | W105: =IF(V105<>"",SUM($AH$6:AH105)/10,"") ->  | Y105: =IF(X105>0,+X105/Daten!$I$18^2,"") ->  | AB105: 0 | AC105: =IF(WEEKDAY(A105)=1,IF(E105=1,VLOOKUP(AD105,Daten!$C$50:$D$103,2)," "),"") ->  | AD105: 7 | AE105: 0 | AF105: 0 | AG105: 0
A106: =+A104+1 -> 2021-02-20 | B106: 2 | C106: 1900-01-07 | D106: 1 | E106: 0 | H106: : | J106: : | Q106: 0 | W106: =IF(V106<>"",SUM($AH$6:AH106)/10,"") ->  | Y106: =IF(X106>0,+X106/Daten!$I$18^2,"") ->  | AB106: 0 | AC106: =IF(WEEKDAY(A106)=1,IF(E106=1,VLOOKUP(AD106,Daten!$C$50:$D$103,2)," "),"") ->  | AD106: 7 | AE106: 0 | AF106: 0 | AG106: 0
A107: =+A106 -> 2021-02-20 | B107: 2 | C107: 1900-01-07 | D107: 2 | E107: 2 | H107: : | J107: : | Q107: 0 | W107: =IF(V107<>"",SUM($AH$6:AH107)/10,"") ->  | Y107: =IF(X107>0,+X107/Daten!$I$18^2,"") ->  | AB107: 0 | AC107: =IF(WEEKDAY(A107)=1,IF(E107=1,VLOOKUP(AD107,Daten!$C$50:$D$103,2)," "),"") ->  | AD107: 7 | AE107: 0 | AF107: 0 | AG107: 0
A108: =+A106+1 -> 2021-02-21 | B108: 2 | C108: 1900-01-01 | D108: 1 | E108: 0 | H108: : | J108: : | Q108: 0 | W108: =IF(V108<>"",SUM($AH$6:AH108)/10,"") ->  | Y108: =IF(X108>0,+X108/Daten!$I$18^2,"") ->  | AB108: 0 | AC108: =IF(WEEKDAY(A108)=1,IF(E108=1,VLOOKUP(AD108,Daten!$C$50:$D$103,2)," "),"") ->  | AD108: 7 | AE108: 0 | AF108: 0 | AG108: 0
A109: =+A108 -> 2021-02-21 | B109: 2 | C109: 1900-01-01 | D109: 2 | E109: 1 | H109: : | J109: : | Q109: 0 | W109: =IF(V109<>"",SUM($AH$6:AH109)/10,"") ->  | Y109: =IF(X109>0,+X109/Daten!$I$18^2,"") ->  | AB109: 0 | AC109: =IF(WEEKDAY(A109)=1,IF(E109=1,VLOOKUP(AD109,Daten!$C$50:$D$103,2)," "),"") -> 0 | AD109: 7 | AE109: 0 | AF109: 0 | AG109: 0
A110: =+A108+1 -> 2021-02-22 | B110: 2 | C110: 1900-01-02 | D110: 1 | E110: 0 | H110: : | J110: : | Q110: 0 | W110: =IF(V110<>"",SUM($AH$6:AH110)/10,"") ->  | Y110: =IF(X110>0,+X110/Daten!$I$18^2,"") ->  | AB110: 0 | AC110: =IF(WEEKDAY(A110)=1,IF(E110=1,VLOOKUP(AD110,Daten!$C$50:$D$103,2)," "),"") ->  | AD110: 8 | AE110: 0 | AF110: 0 | AG110: 0
A111: =+A110 -> 2021-02-22 | B111: 2 | C111: 1900-01-02 | D111: 2 | E111: 2 | H111: : | J111: : | Q111: 0 | W111: =IF(V111<>"",SUM($AH$6:AH111)/10,"") ->  | Y111: =IF(X111>0,+X111/Daten!$I$18^2,"") ->  | AB111: 0 | AC111: =IF(WEEKDAY(A111)=1,IF(E111=1,VLOOKUP(AD111,Daten!$C$50:$D$103,2)," "),"") ->  | AD111: 8 | AE111: 0 | AF111: 0 | AG111: 0
A112: =+A110+1 -> 2021-02-23 | B112: 2 | C112: 1900-01-03 | D112: 1 | E112: 0 | H112: : | J112: : | Q112: 0 | W112: =IF(V112<>"",SUM($AH$6:AH112)/10,"") ->  | Y112: =IF(X112>0,+X112/Daten!$I$18^2,"") ->  | AB112: 0 | AC112: =IF(WEEKDAY(A112)=1,IF(E112=1,VLOOKUP(AD112,Daten!$C$50:$D$103,2)," "),"") ->  | AD112: 8 | AE112: 0 | AF112: 0 | AG112: 0
A113: =+A112 -> 2021-02-23 | B113: 2 | C113: 1900-01-03 | D113: 2 | E113: 2 | H113: : | J113: : | Q113: 0 | W113: =IF(V113<>"",SUM($AH$6:AH113)/10,"") ->  | Y113: =IF(X113>0,+X113/Daten!$I$18^2,"") ->  | AB113: 0 | AC113: =IF(WEEKDAY(A113)=1,IF(E113=1,VLOOKUP(AD113,Daten!$C$50:$D$103,2)," "),"") ->  | AD113: 8 | AE113: 0 | AF113: 0 | AG113: 0
A114: =+A112+1 -> 2021-02-24 | B114: 2 | C114: 1900-01-04 | D114: 1 | E114: 0 | H114: : | J114: : | Q114: 0 | W114: =IF(V114<>"",SUM($AH$6:AH114)/10,"") ->  | Y114: =IF(X114>0,+X114/Daten!$I$18^2,"") ->  | AB114: 0 | AC114: =IF(WEEKDAY(A114)=1,IF(E114=1,VLOOKUP(AD114,Daten!$C$50:$D$103,2)," "),"") ->  | AD114: 8 | AE114: 0 | AF114: 0 | AG114: 0
A115: =+A114 -> 2021-02-24 | B115: 2 | C115: 1900-01-04 | D115: 2 | E115: 2 | H115: : | J115: : | Q115: 0 | W115: =IF(V115<>"",SUM($AH$6:AH115)/10,"") ->  | Y115: =IF(X115>0,+X115/Daten!$I$18^2,"") ->  | AB115: 0 | AC115: =IF(WEEKDAY(A115)=1,IF(E115=1,VLOOKUP(AD115,Daten!$C$50:$D$103,2)," "),"") ->  | AD115: 8 | AE115: 0 | AF115: 0 | AG115: 0
A116: =+A114+1 -> 2021-02-25 | B116: 2 | C116: 1900-01-05 | D116: 1 | E116: 0 | H116: : | J116: : | Q116: 0 | W116: =IF(V116<>"",SUM($AH$6:AH116)/10,"") ->  | Y116: =IF(X116>0,+X116/Daten!$I$18^2,"") ->  | AB116: 0 | AC116: =IF(WEEKDAY(A116)=1,IF(E116=1,VLOOKUP(AD116,Daten!$C$50:$D$103,2)," "),"") ->  | AD116: 8 | AE116: 0 | AF116: 0 | AG116: 0
A117: =+A116 -> 2021-02-25 | B117: 2 | C117: 1900-01-05 | D117: 2 | E117: 2 | H117: : | J117: : | Q117: 0 | W117: =IF(V117<>"",SUM($AH$6:AH117)/10,"") ->  | Y117: =IF(X117>0,+X117/Daten!$I$18^2,"") ->  | AB117: 0 | AC117: =IF(WEEKDAY(A117)=1,IF(E117=1,VLOOKUP(AD117,Daten!$C$50:$D$103,2)," "),"") ->  | AD117: 8 | AE117: 0 | AF117: 0 | AG117: 0
A118: =+A116+1 -> 2021-02-26 | B118: 2 | C118: 1900-01-06 | D118: 1 | E118: 0 | H118: : | J118: : | Q118: 0 | W118: =IF(V118<>"",SUM($AH$6:AH118)/10,"") ->  | Y118: =IF(X118>0,+X118/Daten!$I$18^2,"") ->  | AB118: 0 | AC118: =IF(WEEKDAY(A118)=1,IF(E118=1,VLOOKUP(AD118,Daten!$C$50:$D$103,2)," "),"") ->  | AD118: 8 | AE118: 0 | AF118: 0 | AG118: 0
A119: =+A118 -> 2021-02-26 | B119: 2 | C119: 1900-01-06 | D119: 2 | E119: 2 | H119: : | J119: : | Q119: 0 | W119: =IF(V119<>"",SUM($AH$6:AH119)/10,"") ->  | Y119: =IF(X119>0,+X119/Daten!$I$18^2,"") ->  | AB119: 0 | AC119: =IF(WEEKDAY(A119)=1,IF(E119=1,VLOOKUP(AD119,Daten!$C$50:$D$103,2)," "),"") ->  | AD119: 8 | AE119: 0 | AF119: 0 | AG119: 0
A120: =+A118+1 -> 2021-02-27 | B120: 2 | C120: 1900-01-07 | D120: 1 | E120: 0 | H120: : | J120: : | Q120: 0 | W120: =IF(V120<>"",SUM($AH$6:AH120)/10,"") ->  | Y120: =IF(X120>0,+X120/Daten!$I$18^2,"") ->  | AB120: 0 | AC120: =IF(WEEKDAY(A120)=1,IF(E120=1,VLOOKUP(AD120,Daten!$C$50:$D$103,2)," "),"") ->  | AD120: 8 | AE120: 0 | AF120: 0 | AG120: 0
A121: =+A120 -> 2021-02-27 | B121: 2 | C121: 1900-01-07 | D121: 2 | E121: 2 | H121: : | J121: : | Q121: 0 | W121: =IF(V121<>"",SUM($AH$6:AH121)/10,"") ->  | Y121: =IF(X121>0,+X121/Daten!$I$18^2,"") ->  | AB121: 0 | AC121: =IF(WEEKDAY(A121)=1,IF(E121=1,VLOOKUP(AD121,Daten!$C$50:$D$103,2)," "),"") ->  | AD121: 8 | AE121: 0 | AF121: 0 | AG121: 0
A122: =+A120+1 -> 2021-02-28 | B122: 2 | C122: 1900-01-01 | D122: 1 | E122: 0 | H122: : | J122: : | Q122: 0 | W122: =IF(V122<>"",SUM($AH$6:AH122)/10,"") ->  | Y122: =IF(X122>0,+X122/Daten!$I$18^2,"") ->  | AB122: 0 | AC122: =IF(WEEKDAY(A122)=1,IF(E122=1,VLOOKUP(AD122,Daten!$C$50:$D$103,2)," "),"") ->  | AD122: 8 | AE122: 0 | AF122: 0 | AG122: 0
A123: =+A122 -> 2021-02-28 | B123: 2 | C123: 1900-01-01 | D123: 2 | E123: 1 | H123: : | J123: : | Q123: 0 | W123: =IF(V123<>"",SUM($AH$6:AH123)/10,"") ->  | Y123: =IF(X123>0,+X123/Daten!$I$18^2,"") ->  | AB123: 0 | AC123: =IF(WEEKDAY(A123)=1,IF(E123=1,VLOOKUP(AD123,Daten!$C$50:$D$103,2)," "),"") -> 0 | AD123: 8 | AE123: 0 | AF123: 0 | AG123: 0
A124: =+A122+1 -> 2021-03-01 | B124: 3 | C124: 1900-01-02 | D124: 1 | E124: 0 | H124: : | J124: : | Q124: 0 | W124: =IF(V124<>"",SUM($AH$6:AH124)/10,"") ->  | Y124: =IF(X124>0,+X124/Daten!$I$18^2,"") ->  | AB124: 0 | AC124: =IF(WEEKDAY(A124)=1,IF(E124=1,VLOOKUP(AD124,Daten!$C$50:$D$103,2)," "),"") ->  | AD124: 9 | AE124: 0 | AF124: 0 | AG124: 0
A125: =+A124 -> 2021-03-01 | B125: 3 | C125: 1900-01-02 | D125: 2 | E125: 2 | H125: : | J125: : | Q125: 0 | W125: =IF(V125<>"",SUM($AH$6:AH125)/10,"") ->  | Y125: =IF(X125>0,+X125/Daten!$I$18^2,"") ->  | AB125: 0 | AC125: =IF(WEEKDAY(A125)=1,IF(E125=1,VLOOKUP(AD125,Daten!$C$50:$D$103,2)," "),"") ->  | AD125: 9 | AE125: 0 | AF125: 0 | AG125: 0
A126: =+A124+1 -> 2021-03-02 | B126: 3 | C126: 1900-01-03 | D126: 1 | E126: 0 | H126: : | J126: : | Q126: 0 | W126: =IF(V126<>"",SUM($AH$6:AH126)/10,"") ->  | Y126: =IF(X126>0,+X126/Daten!$I$18^2,"") ->  | AB126: 0 | AC126: =IF(WEEKDAY(A126)=1,IF(E126=1,VLOOKUP(AD126,Daten!$C$50:$D$103,2)," "),"") ->  | AD126: 9 | AE126: 0 | AF126: 0 | AG126: 0
A127: =+A126 -> 2021-03-02 | B127: 3 | C127: 1900-01-03 | D127: 2 | E127: 2 | H127: : | J127: : | Q127: 0 | W127: =IF(V127<>"",SUM($AH$6:AH127)/10,"") ->  | Y127: =IF(X127>0,+X127/Daten!$I$18^2,"") ->  | AB127: 0 | AC127: =IF(WEEKDAY(A127)=1,IF(E127=1,VLOOKUP(AD127,Daten!$C$50:$D$103,2)," "),"") ->  | AD127: 9 | AE127: 0 | AF127: 0 | AG127: 0
A128: =+A126+1 -> 2021-03-03 | B128: 3 | C128: 1900-01-04 | D128: 1 | E128: 0 | H128: : | J128: : | Q128: 0 | W128: =IF(V128<>"",SUM($AH$6:AH128)/10,"") ->  | Y128: =IF(X128>0,+X128/Daten!$I$18^2,"") ->  | AB128: 0 | AC128: =IF(WEEKDAY(A128)=1,IF(E128=1,VLOOKUP(AD128,Daten!$C$50:$D$103,2)," "),"") ->  | AD128: 9 | AE128: 0 | AF128: 0 | AG128: 0
A129: =+A128 -> 2021-03-03 | B129: 3 | C129: 1900-01-04 | D129: 2 | E129: 2 | H129: : | J129: : | Q129: 0 | W129: =IF(V129<>"",SUM($AH$6:AH129)/10,"") ->  | Y129: =IF(X129>0,+X129/Daten!$I$18^2,"") ->  | AB129: 0 | AC129: =IF(WEEKDAY(A129)=1,IF(E129=1,VLOOKUP(AD129,Daten!$C$50:$D$103,2)," "),"") ->  | AD129: 9 | AE129: 0 | AF129: 0 | AG129: 0
A130: =+A128+1 -> 2021-03-04 | B130: 3 | C130: 1900-01-05 | D130: 1 | E130: 0 | H130: : | J130: : | Q130: 0 | W130: =IF(V130<>"",SUM($AH$6:AH130)/10,"") ->  | Y130: =IF(X130>0,+X130/Daten!$I$18^2,"") ->  | AB130: 0 | AC130: =IF(WEEKDAY(A130)=1,IF(E130=1,VLOOKUP(AD130,Daten!$C$50:$D$103,2)," "),"") ->  | AD130: 9 | AE130: 0 | AF130: 0 | AG130: 0
A131: =+A130 -> 2021-03-04 | B131: 3 | C131: 1900-01-05 | D131: 2 | E131: 2 | H131: : | J131: : | Q131: 0 | W131: =IF(V131<>"",SUM($AH$6:AH131)/10,"") ->  | Y131: =IF(X131>0,+X131/Daten!$I$18^2,"") ->  | AB131: 0 | AC131: =IF(WEEKDAY(A131)=1,IF(E131=1,VLOOKUP(AD131,Daten!$C$50:$D$103,2)," "),"") ->  | AD131: 9 | AE131: 0 | AF131: 0 | AG131: 0
A132: =+A130+1 -> 2021-03-05 | B132: 3 | C132: 1900-01-06 | D132: 1 | E132: 0 | H132: : | J132: : | Q132: 0 | W132: =IF(V132<>"",SUM($AH$6:AH132)/10,"") ->  | Y132: =IF(X132>0,+X132/Daten!$I$18^2,"") ->  | AB132: 0 | AC132: =IF(WEEKDAY(A132)=1,IF(E132=1,VLOOKUP(AD132,Daten!$C$50:$D$103,2)," "),"") ->  | AD132: 9 | AE132: 0 | AF132: 0 | AG132: 0
A133: =+A132 -> 2021-03-05 | B133: 3 | C133: 1900-01-06 | D133: 2 | E133: 2 | H133: : | J133: : | Q133: 0 | U133: =IF(COUNTBLANK(T133)=1,"",IF(T133="10","0",10-T133)) ->  | W133: =IF(V133<>"",SUM($AH$6:AH133)/10,"") ->  | Y133: =IF(X133>0,+X133/Daten!$I$18^2,"") ->  | AB133: 0 | AC133: =IF(WEEKDAY(A133)=1,IF(E133=1,VLOOKUP(AD133,Daten!$C$50:$D$103,2)," "),"") ->  | AD133: 9 | AE133: 0 | AF133: 0 | AG133: 0
A134: =+A132+1 -> 2021-03-06 | B134: 3 | C134: 1900-01-07 | D134: 1 | E134: 0 | H134: : | J134: : | Q134: =IF(maxhf<100,0,IF(ISBLANK(P134)="WAHR",P134,P134/maxhf)*100) -> 0 | R134: =IF(F134>0,IF(P134>0,+F134*(F134*1000/(G134*60+I134+K134/60))/(maxhf-P134)*(maxhf/220),""),"") ->  | W134: =IF(V134<>"",SUM($AH$6:AH134)/10,"") ->  | Y134: =IF(X134>0,+X134/Daten!$I$18^2,"") ->  | AB134: 0 | AC134: =IF(WEEKDAY(A134)=1,IF(E134=1,VLOOKUP(AD134,Daten!$C$50:$D$103,2)," "),"") ->  | AD134: 9 | AE134: =IF(F134>0,IF(D134=2,IF((AA133+AA134)>0,1,0),0),0) -> 0 | AF134: =+T134/10*F134 -> 0 | AG134: =IF(COUNTBLANK(T134)=1,0,+U134/10*F134) -> 0
A135: =+A134 -> 2021-03-06 | B135: =MONTH(A135) -> 3 | C135: =WEEKDAY(A135) -> 1900-01-07 | D135: 2 | E135: =IF(D135=2,IF(C135=1,1,2),0) -> 2 | H135: : | J135: : | L135: =IF((+G135*60+I135+K135/60)>0,G135*60+I135+K135/60," ") ->  | M135: =IF(+F135>0,+L135/F135/24/60," ") ->  | N135: =IF(F135>0,+F135/(L135/60),"") ->  | Q135: 0 | W135: =IF(V135<>"",SUM($AH$6:AH135)/10,"") ->  | Y135: =IF(X135>0,+X135/Daten!$I$18^2,"") ->  | AB135: =IF(D135=2,+F135+F134,0) -> 0 | AC135: =IF(WEEKDAY(A135)=1,IF(E135=1,VLOOKUP(AD135,Daten!$C$50:$D$103,2)," "),"") ->  | AD135: 9 | AE135: 0 | AF135: 0 | AG135: 0 | AH135: =IF(V135<>"",10,"") -> 
A136: =+A134+1 -> 2021-03-07 | B136: 3 | C136: 1900-01-01 | D136: 1 | E136: 0 | H136: : | J136: : | Q136: 0 | W136: =IF(V136<>"",SUM($AH$6:AH136)/10,"") ->  | Y136: =IF(X136>0,+X136/Daten!$I$18^2,"") ->  | AB136: 0 | AC136: =IF(WEEKDAY(A136)=1,IF(E136=1,VLOOKUP(AD136,Daten!$C$50:$D$103,2)," "),"") ->  | AD136: =IF(WEEKDAY(A136)=2,IF(D136=1,AD135+1,AD135),AD135) -> 9 | AE136: 0 | AF136: 0 | AG136: 0
A137: =+A136 -> 2021-03-07 | B137: 3 | C137: 1900-01-01 | D137: 2 | E137: 1 | H137: : | J137: : | Q137: 0 | W137: =IF(V137<>"",SUM($AH$6:AH137)/10,"") ->  | Y137: =IF(X137>0,+X137/Daten!$I$18^2,"") ->  | AB137: 0 | AC137: =IF(WEEKDAY(A137)=1,IF(E137=1,VLOOKUP(AD137,Daten!$C$50:$D$103,2)," "),"") -> 0 | AD137: 9 | AE137: 0 | AF137: 0 | AG137: 0
A138: =+A136+1 -> 2021-03-08 | B138: 3 | C138: 1900-01-02 | D138: 1 | E138: 0 | H138: : | J138: : | Q138: 0 | W138: =IF(V138<>"",SUM($AH$6:AH138)/10,"") ->  | Y138: =IF(X138>0,+X138/Daten!$I$18^2,"") ->  | AB138: 0 | AC138: =IF(WEEKDAY(A138)=1,IF(E138=1,VLOOKUP(AD138,Daten!$C$50:$D$103,2)," "),"") ->  | AD138: 10 | AE138: 0 | AF138: 0 | AG138: 0
A139: =+A138 -> 2021-03-08 | B139: 3 | C139: 1900-01-02 | D139: 2 | E139: 2 | H139: : | J139: : | Q139: 0 | W139: =IF(V139<>"",SUM($AH$6:AH139)/10,"") ->  | Y139: =IF(X139>0,+X139/Daten!$I$18^2,"") ->  | AB139: 0 | AC139: =IF(WEEKDAY(A139)=1,IF(E139=1,VLOOKUP(AD139,Daten!$C$50:$D$103,2)," "),"") ->  | AD139: 10 | AE139: 0 | AF139: 0 | AG139: 0
A140: =+A138+1 -> 2021-03-09 | B140: 3 | C140: 1900-01-03 | D140: 1 | E140: 0 | H140: : | J140: : | Q140: 0 | W140: =IF(V140<>"",SUM($AH$6:AH140)/10,"") ->  | Y140: =IF(X140>0,+X140/Daten!$I$18^2,"") ->  | AB140: 0 | AC140: =IF(WEEKDAY(A140)=1,IF(E140=1,VLOOKUP(AD140,Daten!$C$50:$D$103,2)," "),"") ->  | AD140: 10 | AE140: 0 | AF140: 0 | AG140: 0
A141: =+A140 -> 2021-03-09 | B141: 3 | C141: 1900-01-03 | D141: 2 | E141: 2 | H141: : | J141: : | Q141: 0 | W141: =IF(V141<>"",SUM($AH$6:AH141)/10,"") ->  | Y141: =IF(X141>0,+X141/Daten!$I$18^2,"") ->  | AB141: 0 | AC141: =IF(WEEKDAY(A141)=1,IF(E141=1,VLOOKUP(AD141,Daten!$C$50:$D$103,2)," "),"") ->  | AD141: 10 | AE141: 0 | AF141: 0 | AG141: 0
A142: =+A140+1 -> 2021-03-10 | B142: 3 | C142: 1900-01-04 | D142: 1 | E142: 0 | H142: : | J142: : | Q142: 0 | W142: =IF(V142<>"",SUM($AH$6:AH142)/10,"") ->  | Y142: =IF(X142>0,+X142/Daten!$I$18^2,"") ->  | AB142: 0 | AC142: =IF(WEEKDAY(A142)=1,IF(E142=1,VLOOKUP(AD142,Daten!$C$50:$D$103,2)," "),"") ->  | AD142: 10 | AE142: 0 | AF142: 0 | AG142: 0
A143: =+A142 -> 2021-03-10 | B143: 3 | C143: 1900-01-04 | D143: 2 | E143: 2 | H143: : | J143: : | Q143: 0 | W143: =IF(V143<>"",SUM($AH$6:AH143)/10,"") ->  | Y143: =IF(X143>0,+X143/Daten!$I$18^2,"") ->  | AB143: 0 | AC143: =IF(WEEKDAY(A143)=1,IF(E143=1,VLOOKUP(AD143,Daten!$C$50:$D$103,2)," "),"") ->  | AD143: 10 | AE143: 0 | AF143: 0 | AG143: 0
A144: =+A142+1 -> 2021-03-11 | B144: 3 | C144: 1900-01-05 | D144: 1 | E144: 0 | H144: : | J144: : | Q144: 0 | W144: =IF(V144<>"",SUM($AH$6:AH144)/10,"") ->  | Y144: =IF(X144>0,+X144/Daten!$I$18^2,"") ->  | AB144: 0 | AC144: =IF(WEEKDAY(A144)=1,IF(E144=1,VLOOKUP(AD144,Daten!$C$50:$D$103,2)," "),"") ->  | AD144: 10 | AE144: 0 | AF144: 0 | AG144: 0
A145: =+A144 -> 2021-03-11 | B145: 3 | C145: 1900-01-05 | D145: 2 | E145: 2 | H145: : | J145: : | Q145: 0 | W145: =IF(V145<>"",SUM($AH$6:AH145)/10,"") ->  | Y145: =IF(X145>0,+X145/Daten!$I$18^2,"") ->  | AB145: 0 | AC145: =IF(WEEKDAY(A145)=1,IF(E145=1,VLOOKUP(AD145,Daten!$C$50:$D$103,2)," "),"") ->  | AD145: 10 | AE145: 0 | AF145: 0 | AG145: 0
A146: =+A144+1 -> 2021-03-12 | B146: 3 | C146: 1900-01-06 | D146: 1 | E146: 0 | H146: : | J146: : | Q146: 0 | W146: =IF(V146<>"",SUM($AH$6:AH146)/10,"") ->  | Y146: =IF(X146>0,+X146/Daten!$I$18^2,"") ->  | AB146: 0 | AC146: =IF(WEEKDAY(A146)=1,IF(E146=1,VLOOKUP(AD146,Daten!$C$50:$D$103,2)," "),"") ->  | AD146: 10 | AE146: 0 | AF146: 0 | AG146: 0
A147: =+A146 -> 2021-03-12 | B147: 3 | C147: 1900-01-06 | D147: 2 | E147: 2 | H147: : | J147: : | Q147: 0 | W147: =IF(V147<>"",SUM($AH$6:AH147)/10,"") ->  | Y147: =IF(X147>0,+X147/Daten!$I$18^2,"") ->  | AB147: 0 | AC147: =IF(WEEKDAY(A147)=1,IF(E147=1,VLOOKUP(AD147,Daten!$C$50:$D$103,2)," "),"") ->  | AD147: 10 | AE147: 0 | AF147: 0 | AG147: 0
A148: =+A146+1 -> 2021-03-13 | B148: 3 | C148: 1900-01-07 | D148: 1 | E148: 0 | H148: : | J148: : | Q148: 0 | W148: =IF(V148<>"",SUM($AH$6:AH148)/10,"") ->  | Y148: =IF(X148>0,+X148/Daten!$I$18^2,"") ->  | AB148: 0 | AC148: =IF(WEEKDAY(A148)=1,IF(E148=1,VLOOKUP(AD148,Daten!$C$50:$D$103,2)," "),"") ->  | AD148: 10 | AE148: 0 | AF148: 0 | AG148: 0
A149: =+A148 -> 2021-03-13 | B149: 3 | C149: 1900-01-07 | D149: 2 | E149: 2 | H149: : | J149: : | Q149: 0 | W149: =IF(V149<>"",SUM($AH$6:AH149)/10,"") ->  | Y149: =IF(X149>0,+X149/Daten!$I$18^2,"") ->  | AB149: 0 | AC149: =IF(WEEKDAY(A149)=1,IF(E149=1,VLOOKUP(AD149,Daten!$C$50:$D$103,2)," "),"") ->  | AD149: 10 | AE149: 0 | AF149: 0 | AG149: 0
A150: =+A148+1 -> 2021-03-14 | B150: 3 | C150: 1900-01-01 | D150: 1 | E150: 0 | H150: : | J150: : | Q150: 0 | W150: =IF(V150<>"",SUM($AH$6:AH150)/10,"") ->  | Y150: =IF(X150>0,+X150/Daten!$I$18^2,"") ->  | AB150: 0 | AC150: =IF(WEEKDAY(A150)=1,IF(E150=1,VLOOKUP(AD150,Daten!$C$50:$D$103,2)," "),"") ->  | AD150: 10 | AE150: 0 | AF150: 0 | AG150: 0
A151: =+A150 -> 2021-03-14 | B151: 3 | C151: 1900-01-01 | D151: 2 | E151: 1 | H151: : | J151: : | Q151: 0 | W151: =IF(V151<>"",SUM($AH$6:AH151)/10,"") ->  | Y151: =IF(X151>0,+X151/Daten!$I$18^2,"") ->  | AB151: 0 | AC151: =IF(WEEKDAY(A151)=1,IF(E151=1,VLOOKUP(AD151,Daten!$C$50:$D$103,2)," "),"") -> 0 | AD151: 10 | AE151: 0 | AF151: 0 | AG151: 0
A152: =+A150+1 -> 2021-03-15 | B152: 3 | C152: 1900-01-02 | D152: 1 | E152: 0 | H152: : | J152: : | Q152: 0 | W152: =IF(V152<>"",SUM($AH$6:AH152)/10,"") ->  | Y152: =IF(X152>0,+X152/Daten!$I$18^2,"") ->  | AB152: 0 | AC152: =IF(WEEKDAY(A152)=1,IF(E152=1,VLOOKUP(AD152,Daten!$C$50:$D$103,2)," "),"") ->  | AD152: 11 | AE152: 0 | AF152: 0 | AG152: 0
A153: =+A152 -> 2021-03-15 | B153: 3 | C153: 1900-01-02 | D153: 2 | E153: 2 | H153: : | J153: : | Q153: 0 | W153: =IF(V153<>"",SUM($AH$6:AH153)/10,"") ->  | Y153: =IF(X153>0,+X153/Daten!$I$18^2,"") ->  | AB153: 0 | AC153: =IF(WEEKDAY(A153)=1,IF(E153=1,VLOOKUP(AD153,Daten!$C$50:$D$103,2)," "),"") ->  | AD153: 11 | AE153: 0 | AF153: 0 | AG153: 0
A154: =+A152+1 -> 2021-03-16 | B154: 3 | C154: 1900-01-03 | D154: 1 | E154: 0 | H154: : | J154: : | Q154: 0 | W154: =IF(V154<>"",SUM($AH$6:AH154)/10,"") ->  | Y154: =IF(X154>0,+X154/Daten!$I$18^2,"") ->  | AB154: 0 | AC154: =IF(WEEKDAY(A154)=1,IF(E154=1,VLOOKUP(AD154,Daten!$C$50:$D$103,2)," "),"") ->  | AD154: 11 | AE154: 0 | AF154: 0 | AG154: 0
A155: =+A154 -> 2021-03-16 | B155: 3 | C155: 1900-01-03 | D155: 2 | E155: 2 | H155: : | J155: : | Q155: 0 | W155: =IF(V155<>"",SUM($AH$6:AH155)/10,"") ->  | Y155: =IF(X155>0,+X155/Daten!$I$18^2,"") ->  | AB155: 0 | AC155: =IF(WEEKDAY(A155)=1,IF(E155=1,VLOOKUP(AD155,Daten!$C$50:$D$103,2)," "),"") ->  | AD155: 11 | AE155: 0 | AF155: 0 | AG155: 0
A156: =+A154+1 -> 2021-03-17 | B156: 3 | C156: 1900-01-04 | D156: 1 | E156: 0 | H156: : | J156: : | Q156: 0 | W156: =IF(V156<>"",SUM($AH$6:AH156)/10,"") ->  | Y156: =IF(X156>0,+X156/Daten!$I$18^2,"") ->  | AB156: 0 | AC156: =IF(WEEKDAY(A156)=1,IF(E156=1,VLOOKUP(AD156,Daten!$C$50:$D$103,2)," "),"") ->  | AD156: 11 | AE156: 0 | AF156: 0 | AG156: 0
A157: =+A156 -> 2021-03-17 | B157: 3 | C157: 1900-01-04 | D157: 2 | E157: 2 | H157: : | J157: : | Q157: 0 | W157: =IF(V157<>"",SUM($AH$6:AH157)/10,"") ->  | Y157: =IF(X157>0,+X157/Daten!$I$18^2,"") ->  | AB157: 0 | AC157: =IF(WEEKDAY(A157)=1,IF(E157=1,VLOOKUP(AD157,Daten!$C$50:$D$103,2)," "),"") ->  | AD157: 11 | AE157: 0 | AF157: 0 | AG157: 0
A158: =+A156+1 -> 2021-03-18 | B158: 3 | C158: 1900-01-05 | D158: 1 | E158: 0 | H158: : | J158: : | Q158: 0 | W158: =IF(V158<>"",SUM($AH$6:AH158)/10,"") ->  | Y158: =IF(X158>0,+X158/Daten!$I$18^2,"") ->  | AB158: 0 | AC158: =IF(WEEKDAY(A158)=1,IF(E158=1,VLOOKUP(AD158,Daten!$C$50:$D$103,2)," "),"") ->  | AD158: 11 | AE158: 0 | AF158: 0 | AG158: 0
A159: =+A158 -> 2021-03-18 | B159: 3 | C159: 1900-01-05 | D159: 2 | E159: 2 | H159: : | J159: : | Q159: 0 | W159: =IF(V159<>"",SUM($AH$6:AH159)/10,"") ->  | Y159: =IF(X159>0,+X159/Daten!$I$18^2,"") ->  | AB159: 0 | AC159: =IF(WEEKDAY(A159)=1,IF(E159=1,VLOOKUP(AD159,Daten!$C$50:$D$103,2)," "),"") ->  | AD159: 11 | AE159: 0 | AF159: 0 | AG159: 0
A160: =+A158+1 -> 2021-03-19 | B160: 3 | C160: 1900-01-06 | D160: 1 | E160: 0 | H160: : | J160: : | Q160: 0 | W160: =IF(V160<>"",SUM($AH$6:AH160)/10,"") ->  | Y160: =IF(X160>0,+X160/Daten!$I$18^2,"") ->  | AB160: 0 | AC160: =IF(WEEKDAY(A160)=1,IF(E160=1,VLOOKUP(AD160,Daten!$C$50:$D$103,2)," "),"") ->  | AD160: 11 | AE160: 0 | AF160: 0 | AG160: 0
A161: =+A160 -> 2021-03-19 | B161: 3 | C161: 1900-01-06 | D161: 2 | E161: 2 | H161: : | J161: : | Q161: 0 | W161: =IF(V161<>"",SUM($AH$6:AH161)/10,"") ->  | Y161: =IF(X161>0,+X161/Daten!$I$18^2,"") ->  | AB161: 0 | AC161: =IF(WEEKDAY(A161)=1,IF(E161=1,VLOOKUP(AD161,Daten!$C$50:$D$103,2)," "),"") ->  | AD161: 11 | AE161: 0 | AF161: 0 | AG161: 0
A162: =+A160+1 -> 2021-03-20 | B162: 3 | C162: 1900-01-07 | D162: 1 | E162: 0 | H162: : | J162: : | Q162: 0 | W162: =IF(V162<>"",SUM($AH$6:AH162)/10,"") ->  | Y162: =IF(X162>0,+X162/Daten!$I$18^2,"") ->  | AB162: 0 | AC162: =IF(WEEKDAY(A162)=1,IF(E162=1,VLOOKUP(AD162,Daten!$C$50:$D$103,2)," "),"") ->  | AD162: 11 | AE162: 0 | AF162: 0 | AG162: 0
A163: =+A162 -> 2021-03-20 | B163: 3 | C163: 1900-01-07 | D163: 2 | E163: 2 | H163: : | J163: : | Q163: 0 | W163: =IF(V163<>"",SUM($AH$6:AH163)/10,"") ->  | Y163: =IF(X163>0,+X163/Daten!$I$18^2,"") ->  | AB163: 0 | AC163: =IF(WEEKDAY(A163)=1,IF(E163=1,VLOOKUP(AD163,Daten!$C$50:$D$103,2)," "),"") ->  | AD163: 11 | AE163: 0 | AF163: 0 | AG163: 0
A164: =+A162+1 -> 2021-03-21 | B164: 3 | C164: 1900-01-01 | D164: 1 | E164: 0 | H164: : | J164: : | Q164: 0 | W164: =IF(V164<>"",SUM($AH$6:AH164)/10,"") ->  | Y164: =IF(X164>0,+X164/Daten!$I$18^2,"") ->  | AB164: 0 | AC164: =IF(WEEKDAY(A164)=1,IF(E164=1,VLOOKUP(AD164,Daten!$C$50:$D$103,2)," "),"") ->  | AD164: 11 | AE164: 0 | AF164: 0 | AG164: 0
A165: =+A164 -> 2021-03-21 | B165: 3 | C165: 1900-01-01 | D165: 2 | E165: 1 | H165: : | J165: : | Q165: 0 | W165: =IF(V165<>"",SUM($AH$6:AH165)/10,"") ->  | Y165: =IF(X165>0,+X165/Daten!$I$18^2,"") ->  | AB165: 0 | AC165: =IF(WEEKDAY(A165)=1,IF(E165=1,VLOOKUP(AD165,Daten!$C$50:$D$103,2)," "),"") -> 0 | AD165: 11 | AE165: 0 | AF165: 0 | AG165: 0
A166: =+A164+1 -> 2021-03-22 | B166: 3 | C166: 1900-01-02 | D166: 1 | E166: 0 | H166: : | J166: : | Q166: 0 | W166: =IF(V166<>"",SUM($AH$6:AH166)/10,"") ->  | Y166: =IF(X166>0,+X166/Daten!$I$18^2,"") ->  | AB166: 0 | AC166: =IF(WEEKDAY(A166)=1,IF(E166=1,VLOOKUP(AD166,Daten!$C$50:$D$103,2)," "),"") ->  | AD166: 12 | AE166: 0 | AF166: 0 | AG166: 0
A167: =+A166 -> 2021-03-22 | B167: 3 | C167: 1900-01-02 | D167: 2 | E167: 2 | H167: : | J167: : | Q167: 0 | W167: =IF(V167<>"",SUM($AH$6:AH167)/10,"") ->  | Y167: =IF(X167>0,+X167/Daten!$I$18^2,"") ->  | AB167: 0 | AC167: =IF(WEEKDAY(A167)=1,IF(E167=1,VLOOKUP(AD167,Daten!$C$50:$D$103,2)," "),"") ->  | AD167: 12 | AE167: 0 | AF167: 0 | AG167: 0
A168: =+A166+1 -> 2021-03-23 | B168: 3 | C168: 1900-01-03 | D168: 1 | E168: 0 | H168: : | J168: : | Q168: 0 | W168: =IF(V168<>"",SUM($AH$6:AH168)/10,"") ->  | Y168: =IF(X168>0,+X168/Daten!$I$18^2,"") ->  | AB168: 0 | AC168: =IF(WEEKDAY(A168)=1,IF(E168=1,VLOOKUP(AD168,Daten!$C$50:$D$103,2)," "),"") ->  | AD168: 12 | AE168: 0 | AF168: 0 | AG168: 0
A169: =+A168 -> 2021-03-23 | B169: 3 | C169: 1900-01-03 | D169: 2 | E169: 2 | H169: : | J169: : | Q169: 0 | W169: =IF(V169<>"",SUM($AH$6:AH169)/10,"") ->  | Y169: =IF(X169>0,+X169/Daten!$I$18^2,"") ->  | AB169: 0 | AC169: =IF(WEEKDAY(A169)=1,IF(E169=1,VLOOKUP(AD169,Daten!$C$50:$D$103,2)," "),"") ->  | AD169: 12 | AE169: 0 | AF169: 0 | AG169: 0
A170: =+A168+1 -> 2021-03-24 | B170: 3 | C170: 1900-01-04 | D170: 1 | E170: 0 | H170: : | J170: : | Q170: 0 | W170: =IF(V170<>"",SUM($AH$6:AH170)/10,"") ->  | Y170: =IF(X170>0,+X170/Daten!$I$18^2,"") ->  | AB170: 0 | AC170: =IF(WEEKDAY(A170)=1,IF(E170=1,VLOOKUP(AD170,Daten!$C$50:$D$103,2)," "),"") ->  | AD170: 12 | AE170: 0 | AF170: 0 | AG170: 0
A171: =+A170 -> 2021-03-24 | B171: 3 | C171: 1900-01-04 | D171: 2 | E171: 2 | H171: : | J171: : | Q171: 0 | W171: =IF(V171<>"",SUM($AH$6:AH171)/10,"") ->  | Y171: =IF(X171>0,+X171/Daten!$I$18^2,"") ->  | AB171: 0 | AC171: =IF(WEEKDAY(A171)=1,IF(E171=1,VLOOKUP(AD171,Daten!$C$50:$D$103,2)," "),"") ->  | AD171: 12 | AE171: 0 | AF171: 0 | AG171: 0
A172: =+A170+1 -> 2021-03-25 | B172: 3 | C172: 1900-01-05 | D172: 1 | E172: 0 | H172: : | J172: : | Q172: 0 | W172: =IF(V172<>"",SUM($AH$6:AH172)/10,"") ->  | Y172: =IF(X172>0,+X172/Daten!$I$18^2,"") ->  | AB172: 0 | AC172: =IF(WEEKDAY(A172)=1,IF(E172=1,VLOOKUP(AD172,Daten!$C$50:$D$103,2)," "),"") ->  | AD172: 12 | AE172: 0 | AF172: 0 | AG172: 0
A173: =+A172 -> 2021-03-25 | B173: 3 | C173: 1900-01-05 | D173: 2 | E173: 2 | H173: : | J173: : | Q173: 0 | W173: =IF(V173<>"",SUM($AH$6:AH173)/10,"") ->  | Y173: =IF(X173>0,+X173/Daten!$I$18^2,"") ->  | AB173: 0 | AC173: =IF(WEEKDAY(A173)=1,IF(E173=1,VLOOKUP(AD173,Daten!$C$50:$D$103,2)," "),"") ->  | AD173: 12 | AE173: 0 | AF173: 0 | AG173: 0
A174: =+A172+1 -> 2021-03-26 | B174: 3 | C174: 1900-01-06 | D174: 1 | E174: 0 | H174: : | J174: : | Q174: 0 | W174: =IF(V174<>"",SUM($AH$6:AH174)/10,"") ->  | Y174: =IF(X174>0,+X174/Daten!$I$18^2,"") ->  | AB174: 0 | AC174: =IF(WEEKDAY(A174)=1,IF(E174=1,VLOOKUP(AD174,Daten!$C$50:$D$103,2)," "),"") ->  | AD174: 12 | AE174: 0 | AF174: 0 | AG174: 0
A175: =+A174 -> 2021-03-26 | B175: 3 | C175: 1900-01-06 | D175: 2 | E175: 2 | H175: : | J175: : | Q175: 0 | W175: =IF(V175<>"",SUM($AH$6:AH175)/10,"") ->  | Y175: =IF(X175>0,+X175/Daten!$I$18^2,"") ->  | AB175: 0 | AC175: =IF(WEEKDAY(A175)=1,IF(E175=1,VLOOKUP(AD175,Daten!$C$50:$D$103,2)," "),"") ->  | AD175: 12 | AE175: 0 | AF175: 0 | AG175: 0
A176: =+A174+1 -> 2021-03-27 | B176: 3 | C176: 1900-01-07 | D176: 1 | E176: 0 | H176: : | J176: : | Q176: 0 | W176: =IF(V176<>"",SUM($AH$6:AH176)/10,"") ->  | Y176: =IF(X176>0,+X176/Daten!$I$18^2,"") ->  | AB176: 0 | AC176: =IF(WEEKDAY(A176)=1,IF(E176=1,VLOOKUP(AD176,Daten!$C$50:$D$103,2)," "),"") ->  | AD176: 12 | AE176: 0 | AF176: 0 | AG176: 0
A177: =+A176 -> 2021-03-27 | B177: 3 | C177: 1900-01-07 | D177: 2 | E177: 2 | H177: : | J177: : | Q177: 0 | W177: =IF(V177<>"",SUM($AH$6:AH177)/10,"") ->  | Y177: =IF(X177>0,+X177/Daten!$I$18^2,"") ->  | AB177: 0 | AC177: =IF(WEEKDAY(A177)=1,IF(E177=1,VLOOKUP(AD177,Daten!$C$50:$D$103,2)," "),"") ->  | AD177: 12 | AE177: 0 | AF177: 0 | AG177: 0
A178: =+A176+1 -> 2021-03-28 | B178: 3 | C178: 1900-01-01 | D178: 1 | E178: 0 | H178: : | J178: : | Q178: 0 | W178: =IF(V178<>"",SUM($AH$6:AH178)/10,"") ->  | Y178: =IF(X178>0,+X178/Daten!$I$18^2,"") ->  | AB178: 0 | AC178: =IF(WEEKDAY(A178)=1,IF(E178=1,VLOOKUP(AD178,Daten!$C$50:$D$103,2)," "),"") ->  | AD178: 12 | AE178: 0 | AF178: 0 | AG178: 0
A179: =+A178 -> 2021-03-28 | B179: 3 | C179: 1900-01-01 | D179: 2 | E179: 1 | H179: : | J179: : | Q179: 0 | W179: =IF(V179<>"",SUM($AH$6:AH179)/10,"") ->  | Y179: =IF(X179>0,+X179/Daten!$I$18^2,"") ->  | AB179: 0 | AC179: =IF(WEEKDAY(A179)=1,IF(E179=1,VLOOKUP(AD179,Daten!$C$50:$D$103,2)," "),"") -> 0 | AD179: 12 | AE179: 0 | AF179: 0 | AG179: 0
A180: =+A178+1 -> 2021-03-29 | B180: 3 | C180: 1900-01-02 | D180: 1 | E180: 0 | H180: : | J180: : | Q180: 0 | W180: =IF(V180<>"",SUM($AH$6:AH180)/10,"") ->  | Y180: =IF(X180>0,+X180/Daten!$I$18^2,"") ->  | AB180: 0 | AC180: =IF(WEEKDAY(A180)=1,IF(E180=1,VLOOKUP(AD180,Daten!$C$50:$D$103,2)," "),"") ->  | AD180: 13 | AE180: 0 | AF180: 0 | AG180: 0
A181: =+A180 -> 2021-03-29 | B181: 3 | C181: 1900-01-02 | D181: 2 | E181: 2 | H181: : | J181: : | Q181: 0 | W181: =IF(V181<>"",SUM($AH$6:AH181)/10,"") ->  | Y181: =IF(X181>0,+X181/Daten!$I$18^2,"") ->  | AB181: 0 | AC181: =IF(WEEKDAY(A181)=1,IF(E181=1,VLOOKUP(AD181,Daten!$C$50:$D$103,2)," "),"") ->  | AD181: 13 | AE181: 0 | AF181: 0 | AG181: 0
A182: =+A180+1 -> 2021-03-30 | B182: 3 | C182: 1900-01-03 | D182: 1 | E182: 0 | H182: : | J182: : | Q182: 0 | W182: =IF(V182<>"",SUM($AH$6:AH182)/10,"") ->  | Y182: =IF(X182>0,+X182/Daten!$I$18^2,"") ->  | AB182: 0 | AC182: =IF(WEEKDAY(A182)=1,IF(E182=1,VLOOKUP(AD182,Daten!$C$50:$D$103,2)," "),"") ->  | AD182: 13 | AE182: 0 | AF182: 0 | AG182: 0
A183: =+A182 -> 2021-03-30 | B183: 3 | C183: 1900-01-03 | D183: 2 | E183: 2 | H183: : | J183: : | Q183: 0 | W183: =IF(V183<>"",SUM($AH$6:AH183)/10,"") ->  | Y183: =IF(X183>0,+X183/Daten!$I$18^2,"") ->  | AB183: 0 | AC183: =IF(WEEKDAY(A183)=1,IF(E183=1,VLOOKUP(AD183,Daten!$C$50:$D$103,2)," "),"") ->  | AD183: 13 | AE183: 0 | AF183: 0 | AG183: 0
A184: =+A182+1 -> 2021-03-31 | B184: 3 | C184: 1900-01-04 | D184: 1 | E184: 0 | H184: : | J184: : | Q184: 0 | W184: =IF(V184<>"",SUM($AH$6:AH184)/10,"") ->  | Y184: =IF(X184>0,+X184/Daten!$I$18^2,"") ->  | AB184: 0 | AC184: =IF(WEEKDAY(A184)=1,IF(E184=1,VLOOKUP(AD184,Daten!$C$50:$D$103,2)," "),"") ->  | AD184: 13 | AE184: 0 | AF184: 0 | AG184: 0
A185: =+A184 -> 2021-03-31 | B185: 3 | C185: 1900-01-04 | D185: 2 | E185: 2 | H185: : | J185: : | Q185: 0 | W185: =IF(V185<>"",SUM($AH$6:AH185)/10,"") ->  | Y185: =IF(X185>0,+X185/Daten!$I$18^2,"") ->  | AB185: 0 | AC185: =IF(WEEKDAY(A185)=1,IF(E185=1,VLOOKUP(AD185,Daten!$C$50:$D$103,2)," "),"") ->  | AD185: 13 | AE185: 0 | AF185: 0 | AG185: 0
A186: =+A184+1 -> 2021-04-01 | B186: 4 | C186: 1900-01-05 | D186: 1 | E186: 0 | H186: : | J186: : | Q186: 0 | W186: =IF(V186<>"",SUM($AH$6:AH186)/10,"") ->  | Y186: =IF(X186>0,+X186/Daten!$I$18^2,"") ->  | AB186: 0 | AC186: =IF(WEEKDAY(A186)=1,IF(E186=1,VLOOKUP(AD186,Daten!$C$50:$D$103,2)," "),"") ->  | AD186: 13 | AE186: 0 | AF186: 0 | AG186: 0
A187: =+A186 -> 2021-04-01 | B187: 4 | C187: 1900-01-05 | D187: 2 | E187: 2 | H187: : | J187: : | Q187: 0 | W187: =IF(V187<>"",SUM($AH$6:AH187)/10,"") ->  | Y187: =IF(X187>0,+X187/Daten!$I$18^2,"") ->  | AB187: 0 | AC187: =IF(WEEKDAY(A187)=1,IF(E187=1,VLOOKUP(AD187,Daten!$C$50:$D$103,2)," "),"") ->  | AD187: 13 | AE187: 0 | AF187: 0 | AG187: 0
A188: =+A186+1 -> 2021-04-02 | B188: 4 | C188: 1900-01-06 | D188: 1 | E188: 0 | H188: : | J188: : | Q188: 0 | W188: =IF(V188<>"",SUM($AH$6:AH188)/10,"") ->  | Y188: =IF(X188>0,+X188/Daten!$I$18^2,"") ->  | AB188: 0 | AC188: =IF(WEEKDAY(A188)=1,IF(E188=1,VLOOKUP(AD188,Daten!$C$50:$D$103,2)," "),"") ->  | AD188: 13 | AE188: 0 | AF188: 0 | AG188: 0
A189: =+A188 -> 2021-04-02 | B189: 4 | C189: 1900-01-06 | D189: 2 | E189: 2 | H189: : | J189: : | Q189: 0 | W189: =IF(V189<>"",SUM($AH$6:AH189)/10,"") ->  | Y189: =IF(X189>0,+X189/Daten!$I$18^2,"") ->  | AB189: 0 | AC189: =IF(WEEKDAY(A189)=1,IF(E189=1,VLOOKUP(AD189,Daten!$C$50:$D$103,2)," "),"") ->  | AD189: 13 | AE189: 0 | AF189: 0 | AG189: 0
A190: =+A188+1 -> 2021-04-03 | B190: 4 | C190: 1900-01-07 | D190: 1 | E190: 0 | H190: : | J190: : | Q190: 0 | W190: =IF(V190<>"",SUM($AH$6:AH190)/10,"") ->  | Y190: =IF(X190>0,+X190/Daten!$I$18^2,"") ->  | AB190: 0 | AC190: =IF(WEEKDAY(A190)=1,IF(E190=1,VLOOKUP(AD190,Daten!$C$50:$D$103,2)," "),"") ->  | AD190: 13 | AE190: 0 | AF190: 0 | AG190: 0
A191: =+A190 -> 2021-04-03 | B191: 4 | C191: 1900-01-07 | D191: 2 | E191: 2 | H191: : | J191: : | Q191: 0 | W191: =IF(V191<>"",SUM($AH$6:AH191)/10,"") ->  | Y191: =IF(X191>0,+X191/Daten!$I$18^2,"") ->  | AB191: 0 | AC191: =IF(WEEKDAY(A191)=1,IF(E191=1,VLOOKUP(AD191,Daten!$C$50:$D$103,2)," "),"") ->  | AD191: 13 | AE191: 0 | AF191: 0 | AG191: 0
A192: =+A190+1 -> 2021-04-04 | B192: 4 | C192: 1900-01-01 | D192: 1 | E192: 0 | H192: : | J192: : | Q192: 0 | W192: =IF(V192<>"",SUM($AH$6:AH192)/10,"") ->  | Y192: =IF(X192>0,+X192/Daten!$I$18^2,"") ->  | AB192: 0 | AC192: =IF(WEEKDAY(A192)=1,IF(E192=1,VLOOKUP(AD192,Daten!$C$50:$D$103,2)," "),"") ->  | AD192: 13 | AE192: 0 | AF192: 0 | AG192: 0
A193: =+A192 -> 2021-04-04 | B193: 4 | C193: 1900-01-01 | D193: 2 | E193: 1 | H193: : | J193: : | Q193: 0 | W193: =IF(V193<>"",SUM($AH$6:AH193)/10,"") ->  | Y193: =IF(X193>0,+X193/Daten!$I$18^2,"") ->  | AB193: 0 | AC193: =IF(WEEKDAY(A193)=1,IF(E193=1,VLOOKUP(AD193,Daten!$C$50:$D$103,2)," "),"") -> 0 | AD193: 13 | AE193: 0 | AF193: 0 | AG193: 0
A194: =+A192+1 -> 2021-04-05 | B194: 4 | C194: 1900-01-02 | D194: 1 | E194: 0 | H194: : | J194: : | Q194: 0 | W194: =IF(V194<>"",SUM($AH$6:AH194)/10,"") ->  | Y194: =IF(X194>0,+X194/Daten!$I$18^2,"") ->  | AB194: 0 | AC194: =IF(WEEKDAY(A194)=1,IF(E194=1,VLOOKUP(AD194,Daten!$C$50:$D$103,2)," "),"") ->  | AD194: 14 | AE194: 0 | AF194: 0 | AG194: 0
A195: =+A194 -> 2021-04-05 | B195: 4 | C195: 1900-01-02 | D195: 2 | E195: 2 | H195: : | J195: : | Q195: 0 | W195: =IF(V195<>"",SUM($AH$6:AH195)/10,"") ->  | Y195: =IF(X195>0,+X195/Daten!$I$18^2,"") ->  | AB195: 0 | AC195: =IF(WEEKDAY(A195)=1,IF(E195=1,VLOOKUP(AD195,Daten!$C$50:$D$103,2)," "),"") ->  | AD195: 14 | AE195: 0 | AF195: 0 | AG195: 0
A196: =+A194+1 -> 2021-04-06 | B196: 4 | C196: 1900-01-03 | D196: 1 | E196: 0 | H196: : | J196: : | Q196: 0 | W196: =IF(V196<>"",SUM($AH$6:AH196)/10,"") ->  | Y196: =IF(X196>0,+X196/Daten!$I$18^2,"") ->  | AB196: 0 | AC196: =IF(WEEKDAY(A196)=1,IF(E196=1,VLOOKUP(AD196,Daten!$C$50:$D$103,2)," "),"") ->  | AD196: 14 | AE196: 0 | AF196: 0 | AG196: 0
A197: =+A196 -> 2021-04-06 | B197: 4 | C197: 1900-01-03 | D197: 2 | E197: 2 | H197: : | J197: : | Q197: 0 | U197: =IF(COUNTBLANK(T197)=1,"",IF(T197="10","0",10-T197)) ->  | W197: =IF(V197<>"",SUM($AH$6:AH197)/10,"") ->  | Y197: =IF(X197>0,+X197/Daten!$I$18^2,"") ->  | AB197: 0 | AC197: =IF(WEEKDAY(A197)=1,IF(E197=1,VLOOKUP(AD197,Daten!$C$50:$D$103,2)," "),"") ->  | AD197: 14 | AE197: 0 | AF197: 0 | AG197: 0
A198: =+A196+1 -> 2021-04-07 | B198: 4 | C198: 1900-01-04 | D198: 1 | E198: 0 | H198: : | J198: : | Q198: =IF(maxhf<100,0,IF(ISBLANK(P198)="WAHR",P198,P198/maxhf)*100) -> 0 | R198: =IF(F198>0,IF(P198>0,+F198*(F198*1000/(G198*60+I198+K198/60))/(maxhf-P198)*(maxhf/220),""),"") ->  | W198: =IF(V198<>"",SUM($AH$6:AH198)/10,"") ->  | Y198: =IF(X198>0,+X198/Daten!$I$18^2,"") ->  | AB198: 0 | AC198: =IF(WEEKDAY(A198)=1,IF(E198=1,VLOOKUP(AD198,Daten!$C$50:$D$103,2)," "),"") ->  | AD198: 14 | AE198: =IF(F198>0,IF(D198=2,IF((AA197+AA198)>0,1,0),0),0) -> 0 | AF198: =+T198/10*F198 -> 0 | AG198: =IF(COUNTBLANK(T198)=1,0,+U198/10*F198) -> 0
A199: =+A198 -> 2021-04-07 | B199: =MONTH(A199) -> 4 | C199: =WEEKDAY(A199) -> 1900-01-04 | D199: 2 | E199: =IF(D199=2,IF(C199=1,1,2),0) -> 2 | H199: : | J199: : | L199: =IF((+G199*60+I199+K199/60)>0,G199*60+I199+K199/60," ") ->  | M199: =IF(+F199>0,+L199/F199/24/60," ") ->  | N199: =IF(F199>0,+F199/(L199/60),"") ->  | Q199: 0 | W199: =IF(V199<>"",SUM($AH$6:AH199)/10,"") ->  | Y199: =IF(X199>0,+X199/Daten!$I$18^2,"") ->  | AB199: =IF(D199=2,+F199+F198,0) -> 0 | AC199: =IF(WEEKDAY(A199)=1,IF(E199=1,VLOOKUP(AD199,Daten!$C$50:$D$103,2)," "),"") ->  | AD199: 14 | AE199: 0 | AF199: 0 | AG199: 0 | AH199: =IF(V199<>"",10,"") -> 
A200: =+A198+1 -> 2021-04-08 | B200: 4 | C200: 1900-01-05 | D200: 1 | E200: 0 | H200: : | J200: : | Q200: 0 | W200: =IF(V200<>"",SUM($AH$6:AH200)/10,"") ->  | Y200: =IF(X200>0,+X200/Daten!$I$18^2,"") ->  | AB200: 0 | AC200: =IF(WEEKDAY(A200)=1,IF(E200=1,VLOOKUP(AD200,Daten!$C$50:$D$103,2)," "),"") ->  | AD200: =IF(WEEKDAY(A200)=2,IF(D200=1,AD199+1,AD199),AD199) -> 14 | AE200: 0 | AF200: 0 | AG200: 0
... 540 more rows

Sheet Tage

Sheet Wochen

Sheet Monate

Sheet Monate+Bel

Sheet Belastung

Sheet Schuhe

Sheet Kriterien
A1: Erfassung individueller Daten ist nur in | D1: Feldern | E1: notwendig.
A4: Kriterien für
A5: Gesamtsummen Laufen
A6: datum | B6: datum
A11: Schuhname | B11: Kürzel | C11: Kaufdatum | D11: km Vorjahre
A12: Schuh 1 | B12: s1
A13: Schuh 2 | B13: s2
A14: Schuh 3 | B14: s3
A15: Schuh 4 | B15: s4
A16: Schuh 5 | B16: s5
A17: Schuh 6 | B17: s6
A18: Schuh 7 | B18: s7
A19: Schuh 8 | B19: s8
A20: Schuh 9 | B20: s9
A21: Schuh 10 | B21: s10
A22: Schuh 11 | B22: s11
A24: für Lauf-Kalender
A25: Belastung | B25: Kürzel | C25: Pulsbereich von / bis
A26: Wettkampf | B26: W
A27: Tempo (>90%) | B27: T >90% | C27: =0.9*maxhf -> 141.3 | D27: =+maxhf -> 157
A28: GA2 (>80%) | B28: G2>80% | C28: =0.8*maxhf -> 125.6 | D28: =0.9*maxhf-1 -> 140.3
A29: GA1 (>70%) | B29: G1>70% | C29: =0.7*maxhf -> 109.9 | D29: =0.8*maxhf-1 -> 124.6
A30: LDL (>65%) | B30: L>65% | C30: =0.65*maxhf -> 102.05 | D30: =0.7*maxhf-1 -> 108.9
A31: Reg (bis 65%) | B31: R<65% | C31: =0.5*maxhf -> 78.5 | D31: =0.65*maxhf-1 -> 101.05
A34: Monate für Laufsummen | D34: Verweistabelle Wochentage
A35: mo | D35: 1 | E35: So
A36: 1 | D36: 2 | E36: Mo
A37: mo | D37: 3 | E37: Di
A38: 2 | D38: 4 | E38: Mi
A39: mo | D39: 5 | E39: Do
A40: 3 | D40: 6 | E40: Fr
A41: mo | D41: 7 | E41: Sa
A42: 4 | G42: Datenbankkriterien Belastung
A43: mo | G43: bel
A44: 5 | D44: Jan | G44: =+B26 -> W
A45: mo | D45: Feb | G45: bel
A46: 6 | D46: März | G46: =+B27 -> T >90%
A47: mo | D47: April | G47: bel
A48: 7 | D48: Mai | G48: =+B28 -> G2>80%
A49: mo | D49: Juni | G49: bel
A50: 8 | D50: Juli | G50: =+B29 -> G1>70%
A51: mo | D51: Aug | G51: bel
A52: 9 | D52: Sept | G52: =+B30 -> L>65%
A53: mo | D53: Okt | G53: bel
A54: 10 | D54: Nov | G54: =+B31 -> R<65%
A55: mo | D55: Dez
A56: 11
A57: mo
A58: 12
A60: Datenbankkriterien Schuhe | D60: Gültigkeitstabelle Zsfsg.
A61: Schuh | D61: 1
A62: =+B12 -> s1
A63: Schuh
A64: =+B13 -> s2
A65: Schuh
A66: =+B14 -> s3
A67: Schuh
A68: =+B15 -> s4
A69: Schuh
A70: =+B16 -> s5
A71: Schuh
A72: =+B17 -> s6
A73: Schuh
A74: =+B18 -> s7
A75: Schuh
A76: =+B19 -> s8
A77: Schuh
A78: =+B20 -> s9
A79: Schuh
A80: =+B21 -> s10
A81: Schuh
A82: =+B22 -> s11
A88: Wochen für Laufsummen
A89: wonr
A90: 0
A91: wonr
A92: 1
A93: wonr
A94: 2
A95: wonr
A96: 3
A97: wonr
A98: 4
A99: wonr
A100: 5
A101: wonr
A102: 6
A103: wonr
A104: 7
A105: wonr
A106: 8
A107: wonr
A108: 9
A109: wonr
A110: 10
A111: wonr
A112: 11
A113: wonr
A114: 12
A115: wonr
A116: 13
A117: wonr
A118: 14
A119: wonr
A120: 15
A121: wonr
A122: 16
A123: wonr
A124: 17
A125: wonr
A126: 18
A127: wonr
A128: 19
A129: wonr
A130: 20
A131: wonr
A132: 21
A133: wonr
A134: 22
A135: wonr
A136: 23
A137: wonr
A138: 24
A139: wonr
A140: 25
A141: wonr
A142: 26
A143: wonr
A144: 27
A145: wonr
A146: 28
A147: wonr
A148: 29
A149: wonr
A150: 30
A151: wonr
A152: 31
A153: wonr
A154: 32
A155: wonr
A156: 33
A157: wonr
A158: 34
A159: wonr
A160: 35
A161: wonr
A162: 36
A163: wonr
A164: 37
A165: wonr
A166: 38
A167: wonr
A168: 39
A169: wonr
A170: 40
A171: wonr
A172: 41
A173: wonr
A174: 42
A175: wonr
A176: 43
A177: wonr
A178: 44
A179: wonr
A180: 45
A181: wonr
A182: 46
A183: wonr
A184: 47
A185: wonr
A186: 48
A187: wonr
A188: 49
A189: wonr
A190: 50
A191: wonr
A192: 51
A193: wonr
A194: 52
A195: wonr
A196: 53

Sheet Daten
A1: Erfassung individueller Daten ist nur in den | E1: Feldern | F1: notwendig.
C3: Jahr eingeben: | D3: 2021 | E3: =IF(D8<D6,"Jahr hat noch nicht begonnen!","") -> Jahr hat noch nicht begonnen!
C4: Anfangstag: | D4: 1
C5: Anfangsmonat: | D5: 1 | G5: Wochen-Nummer des 01.01. | I5: =IF(I7>3,0,1) -> 0 | J5: (Woche Nr. 1 muss 4 Wochentage haben)
C6: Jahresbeginn | D6: =DATE(D3,1,1) -> 2021-01-01 | G6: Wochentag Jahresbeginn | I6: =WEEKDAY(D6) -> 1900-01-06
C7: Anfang/Ende | D7: =DATE(D3,D5,D4) -> 2021-01-01 | E7: =DATE(D3,12,31) -> 2021-12-31 | G7: Wochentage vor Jahresbeginn | I7: =IF(WEEKDAY(D6)=1,6,WEEKDAY(D6)-2) -> 4
C8: heute | D8: =TODAY() -> 2020-11-05 | E8: =IF(D8>E7,E7-D7+1,D8-D7+1) -> -56 | F8: =MONTH(D8)-D5 -> 10 | G8: darin gelaufene km Vorjahr
C9: Anzahl Tage | D9: =IF(D8<D6,0,IF(E8>E7,E8-D8+1,E8)) -> 0 | G9: Anzahl Läufe Vorjahr
C10: Anzahl Wochen | D10: =IF(D8<D6,0,IF(D8<E7,(D9+I7)/7,(+D9+I7+I11)/7)) -> 0 | G10: Wochentag Jahresende | I10: =WEEKDAY(E7) -> 1900-01-06
C11: Anzahl Monate | D11: =IF(D8<D6,0,IF(D8>E7,12,(D8-D7+1)/30)) -> 0 | G11: Wochentage nach Jahresende | I11: =IF(WEEKDAY(DATE(D3,12,31))=1,0,8-WEEKDAY(DATE(D3,12,31))) -> 2
C12: Anzahljahrestage | D12: =IF(D8<D6,0,IF(D8>E7,E7-D6+1,D8-D6+1)) -> 0 | G12: darin gelaufene km Folgejahr
C13: aktueller Monat | D13: =IF(D3=YEAR(tagesdatum),MONTH(tagesdatum),0) -> 0 | G13: Anzahl Läufe Folgejahr
G15: Infos zum Body Mass Index zum Beispiel bei: | J15: Uni Hohenheim
G16: Infos zu Greif-Punkten bei: | J16: Peter Greif (kommerzielle Seite)
B17: Erstanwender: Vorjahresdaten hier von Hand eingeben | G17: Persönl. max. Herzfrequenz | I17: 157 | J17: für Berechnung Puls-Anteil und Greif-Punkte
B18: Vorjahre | C18: Lauf-km | E18: verl./krank | G18: Körpergrösse in m | I18: 1.76 | J18: für Berechnung des Body Mass Index
B20: 2015
B21: =+B20+1 -> 2016
B22: =+B21+1 -> 2017
B23: =+B22+1 -> 2018
B24: =+B23+1 -> 2019
B25: =+B24+1 -> 2020
B26: =+B25+1 -> 2021
B28: Summe | C28: =SUM(C19:C27) -> 0 | E28: =SUM(E19:E27) -> 0
C31: Monatssummen Datenbank
C32: Monat | D32: Laufen | G32: Muckibude
B33: Jan | C33: 1 | D33: =DSUM(laufkalender,Laufkal!F5,Kriterien!$A$35:$A$36) -> 22 | G33: =DSUM(laufkalender,Laufkal!AH5,Kriterien!$A$35:$A$36) -> 10
B34: Feb | C34: 2 | D34: =DSUM(laufkalender,Laufkal!F5,Kriterien!$A$37:$A$38) -> 0 | G34: =DSUM(laufkalender,Laufkal!AH5,Kriterien!$A$37:$A$38) -> 0
B35: März | C35: 3 | D35: =DSUM(laufkalender,Laufkal!F5,Kriterien!$A$39:$A$40) -> 0 | G35: =DSUM(laufkalender,Laufkal!AH5,Kriterien!$A$39:$A$40) -> 0
B36: April | C36: 4 | D36: =DSUM(laufkalender,Laufkal!F5,Kriterien!$A$41:$A$42) -> 0 | G36: =DSUM(laufkalender,Laufkal!AH5,Kriterien!$A$41:$A$42) -> 0
B37: Mai | C37: 5 | D37: =DSUM(laufkalender,Laufkal!F5,Kriterien!$A$43:$A$44) -> 0 | G37: =DSUM(laufkalender,Laufkal!AH5,Kriterien!$A$43:$A$44) -> 0
B38: Juni | C38: 6 | D38: =DSUM(laufkalender,Laufkal!F5,Kriterien!$A$45:$A$46) -> 0 | G38: =DSUM(laufkalender,Laufkal!AH5,Kriterien!$A$45:$A$46) -> 0
B39: Juli | C39: 7 | D39: =DSUM(laufkalender,Laufkal!F5,Kriterien!$A$47:$A$48) -> 0 | G39: =DSUM(laufkalender,Laufkal!AH5,Kriterien!$A$47:$A$48) -> 0
B40: Aug | C40: 8 | D40: =DSUM(laufkalender,Laufkal!F5,Kriterien!$A$49:$A$50) -> 0 | G40: =DSUM(laufkalender,Laufkal!AH5,Kriterien!$A$49:$A$50) -> 0
B41: Sept | C41: 9 | D41: =DSUM(laufkalender,Laufkal!F5,Kriterien!$A$51:$A$52) -> 0 | G41: =DSUM(laufkalender,Laufkal!AH5,Kriterien!$A$51:$A$52) -> 0
B42: Okt | C42: 10 | D42: =DSUM(laufkalender,Laufkal!F5,Kriterien!$A$53:$A$54) -> 0 | G42: =DSUM(laufkalender,Laufkal!AH5,Kriterien!$A$53:$A$54) -> 0
B43: Nov | C43: 11 | D43: =DSUM(laufkalender,Laufkal!F5,Kriterien!$A$55:$A$56) -> 0 | G43: =DSUM(laufkalender,Laufkal!AH5,Kriterien!$A$55:$A$56) -> 0
B44: Dez | C44: 12 | D44: =DSUM(laufkalender,Laufkal!F5,Kriterien!$A$57:$A$58) -> 0 | G44: =DSUM(laufkalender,Laufkal!AH5,Kriterien!$A$57:$A$58) -> 0
D45: =SUM(D33:D44) -> 22 | G45: =SUM(G33:G44) -> 10
C47: Wochensummen Datenbank
C48: Woche | D48: Laufen | G48: Mubu
C50: 0 | D50: =IF(erstewochennr=0,DSUM(laufkalender,Laufkal!$F$5,Kriterien!A89:A90)+laufkmvorjahr,DSUM(laufkalender,Laufkal!$F$5,Kriterien!A89:A90)) -> 10 | G50: =DSUM(laufkalender,Laufkal!$AH$5,Kriterien!A91:A92) -> 0
C51: 1 | D51: =IF(erstewochennr=1,DSUM(laufkalender,Laufkal!$F$5,Kriterien!A91:A92)+laufkmvorjahr,DSUM(laufkalender,Laufkal!$F$5,Kriterien!A91:A92)) -> 12 | G51: =DSUM(laufkalender,Laufkal!$AH$5,Kriterien!A92:A93) -> 0
C52: 2 | D52: =DSUM(laufkalender,Laufkal!$F$5,Kriterien!A93:A94) -> 0 | G52: =DSUM(laufkalender,Laufkal!$AH$5,Kriterien!A93:A94) -> 0
C53: 3 | D53: =DSUM(laufkalender,Laufkal!$F$5,Kriterien!A95:A96) -> 0 | G53: =DSUM(laufkalender,Laufkal!$AH$5,Kriterien!A95:A96) -> 0
C54: 4 | D54: =DSUM(laufkalender,Laufkal!$F$5,Kriterien!A97:A98) -> 0 | G54: =DSUM(laufkalender,Laufkal!$AH$5,Kriterien!A97:A98) -> 0
C55: 5 | D55: =DSUM(laufkalender,Laufkal!$F$5,Kriterien!A99:A100) -> 0 | G55: =DSUM(laufkalender,Laufkal!$AH$5,Kriterien!A99:A100) -> 0
C56: 6 | D56: =DSUM(laufkalender,Laufkal!$F$5,Kriterien!A101:A102) -> 0 | G56: =DSUM(laufkalender,Laufkal!$AH$5,Kriterien!A101:A102) -> 0
C57: 7 | D57: =DSUM(laufkalender,Laufkal!$F$5,Kriterien!A103:A104) -> 0 | G57: =DSUM(laufkalender,Laufkal!$AH$5,Kriterien!A103:A104) -> 0
C58: 8 | D58: =DSUM(laufkalender,Laufkal!$F$5,Kriterien!A105:A106) -> 0 | G58: =DSUM(laufkalender,Laufkal!$AH$5,Kriterien!A105:A106) -> 0
C59: 9 | D59: =DSUM(laufkalender,Laufkal!$F$5,Kriterien!A107:A108) -> 0 | G59: =DSUM(laufkalender,Laufkal!$AH$5,Kriterien!A107:A108) -> 0
C60: 10 | D60: =DSUM(laufkalender,Laufkal!$F$5,Kriterien!A109:A110) -> 0 | G60: =DSUM(laufkalender,Laufkal!$AH$5,Kriterien!A109:A110) -> 0
C61: 11 | D61: =DSUM(laufkalender,Laufkal!$F$5,Kriterien!A111:A112) -> 0 | G61: =DSUM(laufkalender,Laufkal!$AH$5,Kriterien!A111:A112) -> 0
C62: 12 | D62: =DSUM(laufkalender,Laufkal!$F$5,Kriterien!A113:A114) -> 0 | G62: =DSUM(laufkalender,Laufkal!$AH$5,Kriterien!A113:A114) -> 0
C63: 13 | D63: =DSUM(laufkalender,Laufkal!$F$5,Kriterien!A115:A116) -> 0 | G63: =DSUM(laufkalender,Laufkal!$AH$5,Kriterien!A115:A116) -> 0
C64: 14 | D64: =DSUM(laufkalender,Laufkal!$F$5,Kriterien!A117:A118) -> 0 | G64: =DSUM(laufkalender,Laufkal!$AH$5,Kriterien!A117:A118) -> 0
C65: 15 | D65: =DSUM(laufkalender,Laufkal!$F$5,Kriterien!A119:A120) -> 0 | G65: =DSUM(laufkalender,Laufkal!$AH$5,Kriterien!A119:A120) -> 0
C66: 16 | D66: =DSUM(laufkalender,Laufkal!$F$5,Kriterien!A121:A122) -> 0 | G66: =DSUM(laufkalender,Laufkal!$AH$5,Kriterien!A121:A122) -> 0
C67: 17 | D67: =DSUM(laufkalender,Laufkal!$F$5,Kriterien!A123:A124) -> 0 | G67: =DSUM(laufkalender,Laufkal!$AH$5,Kriterien!A123:A124) -> 0
C68: 18 | D68: =DSUM(laufkalender,Laufkal!$F$5,Kriterien!A125:A126) -> 0 | G68: =DSUM(laufkalender,Laufkal!$AH$5,Kriterien!A125:A126) -> 0
C69: 19 | D69: =DSUM(laufkalender,Laufkal!$F$5,Kriterien!A127:A128) -> 0 | G69: =DSUM(laufkalender,Laufkal!$AH$5,Kriterien!A127:A128) -> 0
C70: 20 | D70: =DSUM(laufkalender,Laufkal!$F$5,Kriterien!A129:A130) -> 0 | G70: =DSUM(laufkalender,Laufkal!$AH$5,Kriterien!A129:A130) -> 0
C71: 21 | D71: =DSUM(laufkalender,Laufkal!$F$5,Kriterien!A131:A132) -> 0 | G71: =DSUM(laufkalender,Laufkal!$AH$5,Kriterien!A131:A132) -> 0
C72: 22 | D72: =DSUM(laufkalender,Laufkal!$F$5,Kriterien!A133:A134) -> 0 | G72: =DSUM(laufkalender,Laufkal!$AH$5,Kriterien!A133:A134) -> 0
C73: 23 | D73: =DSUM(laufkalender,Laufkal!$F$5,Kriterien!A135:A136) -> 0 | G73: =DSUM(laufkalender,Laufkal!$AH$5,Kriterien!A135:A136) -> 0
C74: 24 | D74: =DSUM(laufkalender,Laufkal!$F$5,Kriterien!A137:A138) -> 0 | G74: =DSUM(laufkalender,Laufkal!$AH$5,Kriterien!A137:A138) -> 0
C75: 25 | D75: =DSUM(laufkalender,Laufkal!$F$5,Kriterien!A139:A140) -> 0 | G75: =DSUM(laufkalender,Laufkal!$AH$5,Kriterien!A139:A140) -> 0
C76: 26 | D76: =DSUM(laufkalender,Laufkal!$F$5,Kriterien!A141:A142) -> 0 | G76: =DSUM(laufkalender,Laufkal!$AH$5,Kriterien!A141:A142) -> 0
C77: 27 | D77: =DSUM(laufkalender,Laufkal!$F$5,Kriterien!A143:A144) -> 0 | G77: =DSUM(laufkalender,Laufkal!$AH$5,Kriterien!A143:A144) -> 0
C78: 28 | D78: =DSUM(laufkalender,Laufkal!$F$5,Kriterien!A145:A146) -> 0 | G78: =DSUM(laufkalender,Laufkal!$AH$5,Kriterien!A145:A146) -> 0
C79: 29 | D79: =DSUM(laufkalender,Laufkal!$F$5,Kriterien!A147:A148) -> 0 | G79: =DSUM(laufkalender,Laufkal!$AH$5,Kriterien!A147:A148) -> 0
C80: 30 | D80: =DSUM(laufkalender,Laufkal!$F$5,Kriterien!A149:A150) -> 0 | G80: =DSUM(laufkalender,Laufkal!$AH$5,Kriterien!A149:A150) -> 0
C81: 31 | D81: =DSUM(laufkalender,Laufkal!$F$5,Kriterien!A151:A152) -> 0 | G81: =DSUM(laufkalender,Laufkal!$AH$5,Kriterien!A151:A152) -> 0
C82: 32 | D82: =DSUM(laufkalender,Laufkal!$F$5,Kriterien!A153:A154) -> 0 | G82: =DSUM(laufkalender,Laufkal!$AH$5,Kriterien!A153:A154) -> 0
C83: 33 | D83: =DSUM(laufkalender,Laufkal!$F$5,Kriterien!A155:A156) -> 0 | G83: =DSUM(laufkalender,Laufkal!$AH$5,Kriterien!A155:A156) -> 0
C84: 34 | D84: =DSUM(laufkalender,Laufkal!$F$5,Kriterien!A157:A158) -> 0 | G84: =DSUM(laufkalender,Laufkal!$AH$5,Kriterien!A157:A158) -> 0
C85: 35 | D85: =DSUM(laufkalender,Laufkal!$F$5,Kriterien!A159:A160) -> 0 | G85: =DSUM(laufkalender,Laufkal!$AH$5,Kriterien!A159:A160) -> 0
C86: 36 | D86: =DSUM(laufkalender,Laufkal!$F$5,Kriterien!A161:A162) -> 0 | G86: =DSUM(laufkalender,Laufkal!$AH$5,Kriterien!A161:A162) -> 0
C87: 37 | D87: =DSUM(laufkalender,Laufkal!$F$5,Kriterien!A163:A164) -> 0 | G87: =DSUM(laufkalender,Laufkal!$AH$5,Kriterien!A163:A164) -> 0
C88: 38 | D88: =DSUM(laufkalender,Laufkal!$F$5,Kriterien!A165:A166) -> 0 | G88: =DSUM(laufkalender,Laufkal!$AH$5,Kriterien!A165:A166) -> 0
C89: 39 | D89: =DSUM(laufkalender,Laufkal!$F$5,Kriterien!A167:A168) -> 0 | G89: =DSUM(laufkalender,Laufkal!$AH$5,Kriterien!A167:A168) -> 0
C90: 40 | D90: =DSUM(laufkalender,Laufkal!$F$5,Kriterien!A169:A170) -> 0 | G90: =DSUM(laufkalender,Laufkal!$AH$5,Kriterien!A169:A170) -> 0
C91: 41 | D91: =DSUM(laufkalender,Laufkal!$F$5,Kriterien!A171:A172) -> 0 | G91: =DSUM(laufkalender,Laufkal!$AH$5,Kriterien!A171:A172) -> 0
C92: 42 | D92: =DSUM(laufkalender,Laufkal!$F$5,Kriterien!A173:A174) -> 0 | G92: =DSUM(laufkalender,Laufkal!$AH$5,Kriterien!A173:A174) -> 0
C93: 43 | D93: =DSUM(laufkalender,Laufkal!$F$5,Kriterien!A175:A176) -> 0 | G93: =DSUM(laufkalender,Laufkal!$AH$5,Kriterien!A175:A176) -> 0
C94: 44 | D94: =DSUM(laufkalender,Laufkal!$F$5,Kriterien!A177:A178) -> 0 | G94: =DSUM(laufkalender,Laufkal!$AH$5,Kriterien!A177:A178) -> 0
C95: 45 | D95: =DSUM(laufkalender,Laufkal!$F$5,Kriterien!A179:A180) -> 0 | G95: =DSUM(laufkalender,Laufkal!$AH$5,Kriterien!A179:A180) -> 0
C96: 46 | D96: =DSUM(laufkalender,Laufkal!$F$5,Kriterien!A181:A182) -> 0 | G96: =DSUM(laufkalender,Laufkal!$AH$5,Kriterien!A181:A182) -> 0
C97: 47 | D97: =DSUM(laufkalender,Laufkal!$F$5,Kriterien!A183:A184) -> 0 | G97: =DSUM(laufkalender,Laufkal!$AH$5,Kriterien!A183:A184) -> 0
C98: 48 | D98: =DSUM(laufkalender,Laufkal!$F$5,Kriterien!A185:A186) -> 0 | G98: =DSUM(laufkalender,Laufkal!$AH$5,Kriterien!A185:A186) -> 0
C99: 49 | D99: =DSUM(laufkalender,Laufkal!$F$5,Kriterien!A187:A188) -> 0 | G99: =DSUM(laufkalender,Laufkal!$AH$5,Kriterien!A187:A188) -> 0
C100: 50 | D100: =DSUM(laufkalender,Laufkal!$F$5,Kriterien!A189:A190) -> 0 | G100: =DSUM(laufkalender,Laufkal!$AH$5,Kriterien!A189:A190) -> 0
C101: 51 | D101: =DSUM(laufkalender,Laufkal!$F$5,Kriterien!A191:A192) -> 0 | G101: =DSUM(laufkalender,Laufkal!$AH$5,Kriterien!A191:A192) -> 0
C102: 52 | D102: =DSUM(laufkalender,Laufkal!$F$5,Kriterien!A193:A194) -> 0 | G102: =DSUM(laufkalender,Laufkal!$AH$5,Kriterien!A193:A194) -> 0
C103: 53 | D103: =DSUM(laufkalender,Laufkal!$F$5,Kriterien!A195:A196)+laufkmfolgejahr -> 0 | G103: =DSUM(laufkalender,Laufkal!$AH$5,Kriterien!A195:A196) -> 0
D105: =SUM(D50:D104) -> 22 | G105: =SUM(G50:G104) -> 0

Sheet Jahre

Sheet Strecken
A1: Laufstrecken
A2: Strecke 1
A3: Strecke 2
A4: Strecke 3
A5: Strecke 4
A6: Strecke 5
A7: Strecke 6
A8: Strecke 7
A9: Strecke 8
A10: Strecke 9
A11: Strecke 10
A13: Distanzen
A14: 5
A15: 10
A16: 15
A17: 20
A18: 21.1
A19: 25
A20: 30
A21: 42.2
A23: Zum Einfügen weiterer Strecken neue Zeilen vor der letzten Zeile einfügen.
A24: Dadurch wird der festgelegte Eingabe-Bereich automatisch erweitert.

Sheet Bel-Kriterien
A1: Kriterien und Formeln zur Berechnung der Belastungen je Monat
A2: In diesem Blatt sind keine individuellen Änderungen notwendig. | O2: 1 | P2: 2 | Q2: 3 | R2: 4 | S2: 5 | T2: 6 | U2: 7 | V2: 8 | W2: 9 | X2: 10 | Y2: 11 | Z2: 12 | AA2: Sum
A3: mo | B3: bel | C3: mo | D3: bel | E3: mo | F3: bel | G3: mo | H3: bel | I3: mo | J3: bel | K3: mo | L3: bel | N3: =+Kriterien!B26 -> W | O3: =DSUM(laufkalender,Laufkal!F5,A3:B4) -> 10 | P3: =DSUM(laufkalender,Laufkal!$F$5,A5:B6) -> 0 | Q3: =DSUM(laufkalender,Laufkal!$F$5,A7:B8) -> 0 | R3: =DSUM(laufkalender,Laufkal!$F$5,A9:B10) -> 0 | S3: =DSUM(laufkalender,Laufkal!$F$5,A11:B12) -> 0 | T3: =DSUM(laufkalender,Laufkal!$F$5,A13:B14) -> 0 | U3: =DSUM(laufkalender,Laufkal!$F$5,A15:B16) -> 0 | V3: =DSUM(laufkalender,Laufkal!$F$5,A17:B18) -> 0 | W3: =DSUM(laufkalender,Laufkal!$F$5,A19:B20) -> 0 | X3: =DSUM(laufkalender,Laufkal!$F$5,A21:B22) -> 0 | Y3: =DSUM(laufkalender,Laufkal!$F$5,A23:B24) -> 0 | Z3: =DSUM(laufkalender,Laufkal!$F$5,A25:B26) -> 0 | AA3: =SUM(O3:Z3) -> 10
A4: 1 | B4: =+Kriterien!$B$26 -> W | C4: 1 | D4: =+Kriterien!$B$27 -> T >90% | E4: 1 | F4: =+Kriterien!$B$28 -> G2>80% | G4: 1 | H4: =+Kriterien!$B$29 -> G1>70% | I4: 1 | J4: =+Kriterien!$B$30 -> L>65% | K4: 1 | L4: =+Kriterien!$B$31 -> R<65% | N4: =+Kriterien!B27 -> T >90% | O4: =DSUM(laufkalender,Laufkal!$F$5,C3:D4) -> 0 | P4: =DSUM(laufkalender,Laufkal!$F$5,C5:D6) -> 0 | Q4: =DSUM(laufkalender,Laufkal!$F$5,C7:D8) -> 0 | R4: =DSUM(laufkalender,Laufkal!$F$5,C9:D10) -> 0 | S4: =DSUM(laufkalender,Laufkal!$F$5,C11:D12) -> 0 | T4: =DSUM(laufkalender,Laufkal!$F$5,C13:D14) -> 0 | U4: =DSUM(laufkalender,Laufkal!$F$5,C15:D16) -> 0 | V4: =DSUM(laufkalender,Laufkal!$F$5,C17:D18) -> 0 | W4: =DSUM(laufkalender,Laufkal!$F$5,C19:D20) -> 0 | X4: =DSUM(laufkalender,Laufkal!$F$5,C21:D22) -> 0 | Y4: =DSUM(laufkalender,Laufkal!$F$5,C23:D24) -> 0 | Z4: =DSUM(laufkalender,Laufkal!$F$5,C25:D26) -> 0 | AA4: =SUM(O4:Z4) -> 0
A5: mo | B5: bel | C5: mo | D5: bel | E5: mo | F5: bel | G5: mo | H5: bel | I5: mo | J5: bel | K5: mo | L5: bel | N5: =+Kriterien!B28 -> G2>80% | O5: =DSUM(laufkalender,Laufkal!$F$5,E3:F4) -> 0 | P5: =DSUM(laufkalender,Laufkal!$F$5,E5:F6) -> 0 | Q5: =DSUM(laufkalender,Laufkal!$F$5,E7:F8) -> 0 | R5: =DSUM(laufkalender,Laufkal!$F$5,E9:F10) -> 0 | S5: =DSUM(laufkalender,Laufkal!$F$5,E11:F12) -> 0 | T5: =DSUM(laufkalender,Laufkal!$F$5,E13:F14) -> 0 | U5: =DSUM(laufkalender,Laufkal!$F$5,E15:F16) -> 0 | V5: =DSUM(laufkalender,Laufkal!$F$5,E17:F18) -> 0 | W5: =DSUM(laufkalender,Laufkal!$F$5,E19:F20) -> 0 | X5: =DSUM(laufkalender,Laufkal!$F$5,E21:F22) -> 0 | Y5: =DSUM(laufkalender,Laufkal!$F$5,E23:F24) -> 0 | Z5: =DSUM(laufkalender,Laufkal!$F$5,E25:F26) -> 0 | AA5: 0
A6: 2 | B6: =+Kriterien!$B$26 -> W | C6: 2 | D6: =+Kriterien!$B$27 -> T >90% | E6: 2 | F6: =+Kriterien!$B$28 -> G2>80% | G6: 2 | H6: =+Kriterien!$B$29 -> G1>70% | I6: 2 | J6: =+Kriterien!$B$30 -> L>65% | K6: 2 | L6: =+Kriterien!$B$31 -> R<65% | N6: =+Kriterien!B29 -> G1>70% | O6: =DSUM(laufkalender,Laufkal!$F$5,G3:H4) -> 0 | P6: =DSUM(laufkalender,Laufkal!$F$5,G5:H6) -> 0 | Q6: =DSUM(laufkalender,Laufkal!$F$5,G7:H8) -> 0 | R6: =DSUM(laufkalender,Laufkal!$F$5,G9:H10) -> 0 | S6: =DSUM(laufkalender,Laufkal!$F$5,G11:H12) -> 0 | T6: =DSUM(laufkalender,Laufkal!$F$5,G13:H14) -> 0 | U6: =DSUM(laufkalender,Laufkal!$F$5,G15:H16) -> 0 | V6: =DSUM(laufkalender,Laufkal!$F$5,G17:H18) -> 0 | W6: =DSUM(laufkalender,Laufkal!$F$5,G19:H20) -> 0 | X6: =DSUM(laufkalender,Laufkal!$F$5,G21:H22) -> 0 | Y6: =DSUM(laufkalender,Laufkal!$F$5,G23:H24) -> 0 | Z6: =DSUM(laufkalender,Laufkal!$F$5,G25:H26) -> 0 | AA6: 0
A7: mo | B7: bel | C7: mo | D7: bel | E7: mo | F7: bel | G7: mo | H7: bel | I7: mo | J7: bel | K7: mo | L7: bel | N7: =+Kriterien!B30 -> L>65% | O7: =DSUM(laufkalender,Laufkal!$F$5,I3:J4) -> 10 | P7: =DSUM(laufkalender,Laufkal!$F$5,I5:J6) -> 0 | Q7: =DSUM(laufkalender,Laufkal!$F$5,I7:J8) -> 0 | R7: =DSUM(laufkalender,Laufkal!$F$5,I9:J10) -> 0 | S7: =DSUM(laufkalender,Laufkal!$F$5,I11:J12) -> 0 | T7: =DSUM(laufkalender,Laufkal!$F$5,I13:J14) -> 0 | U7: =DSUM(laufkalender,Laufkal!$F$5,I15:J16) -> 0 | V7: =DSUM(laufkalender,Laufkal!$F$5,I17:J18) -> 0 | W7: =DSUM(laufkalender,Laufkal!$F$5,I19:J20) -> 0 | X7: =DSUM(laufkalender,Laufkal!$F$5,I21:J22) -> 0 | Y7: =DSUM(laufkalender,Laufkal!$F$5,I23:J24) -> 0 | Z7: =DSUM(laufkalender,Laufkal!$F$5,I25:J26) -> 0 | AA7: 10
A8: 3 | B8: =+Kriterien!$B$26 -> W | C8: 3 | D8: =+Kriterien!$B$27 -> T >90% | E8: 3 | F8: =+Kriterien!$B$28 -> G2>80% | G8: 3 | H8: =+Kriterien!$B$29 -> G1>70% | I8: 3 | J8: =+Kriterien!$B$30 -> L>65% | K8: 3 | L8: =+Kriterien!$B$31 -> R<65% | N8: =+Kriterien!B31 -> R<65% | O8: =DSUM(laufkalender,Laufkal!$F$5,K3:L4) -> 2 | P8: =DSUM(laufkalender,Laufkal!$F$5,K5:L6) -> 0 | Q8: =DSUM(laufkalender,Laufkal!$F$5,K7:L8) -> 0 | R8: =DSUM(laufkalender,Laufkal!$F$5,K9:L10) -> 0 | S8: =DSUM(laufkalender,Laufkal!$F$5,K11:L12) -> 0 | T8: =DSUM(laufkalender,Laufkal!$F$5,K13:L14) -> 0 | U8: =DSUM(laufkalender,Laufkal!$F$5,K15:L16) -> 0 | V8: =DSUM(laufkalender,Laufkal!$F$5,K17:L18) -> 0 | W8: =DSUM(laufkalender,Laufkal!$F$5,K19:L20) -> 0 | X8: =DSUM(laufkalender,Laufkal!$F$5,K21:L22) -> 0 | Y8: =DSUM(laufkalender,Laufkal!$F$5,K23:L24) -> 0 | Z8: =DSUM(laufkalender,Laufkal!$F$5,K25:L26) -> 0 | AA8: 2
A9: mo | B9: bel | C9: mo | D9: bel | E9: mo | F9: bel | G9: mo | H9: bel | I9: mo | J9: bel | K9: mo | L9: bel | N9: Sum | O9: =SUM(O3:O8) -> 22 | P9: =SUM(P3:P8) -> 0 | Q9: 0 | R9: 0 | S9: 0 | T9: 0 | U9: 0 | V9: 0 | W9: 0 | X9: 0 | Y9: 0 | Z9: 0 | AA9: 22
A10: 4 | B10: =+Kriterien!$B$26 -> W | C10: 4 | D10: =+Kriterien!$B$27 -> T >90% | E10: 4 | F10: =+Kriterien!$B$28 -> G2>80% | G10: 4 | H10: =+Kriterien!$B$29 -> G1>70% | I10: 4 | J10: =+Kriterien!$B$30 -> L>65% | K10: 4 | L10: =+Kriterien!$B$31 -> R<65%
A11: mo | B11: bel | C11: mo | D11: bel | E11: mo | F11: bel | G11: mo | H11: bel | I11: mo | J11: bel | K11: mo | L11: bel | N11: =+Kriterien!B26 -> W | O11: =IF(O3=0,0,+O3/O9) -> 0.4545454545 | P11: =IF(P3=0,0,+P3/P9) -> 0 | Q11: 0 | R11: 0 | S11: 0 | T11: 0 | U11: 0 | V11: 0 | W11: 0 | X11: 0 | Y11: 0 | Z11: 0 | AA11: =+AA3/AA9 -> 0.4545454545
A12: 5 | B12: =+Kriterien!$B$26 -> W | C12: 5 | D12: =+Kriterien!$B$27 -> T >90% | E12: 5 | F12: =+Kriterien!$B$28 -> G2>80% | G12: 5 | H12: =+Kriterien!$B$29 -> G1>70% | I12: 5 | J12: =+Kriterien!$B$30 -> L>65% | K12: 5 | L12: =+Kriterien!$B$31 -> R<65% | N12: =+Kriterien!B27 -> T >90% | O12: =IF(O4=0,0,+O4/O9) -> 0 | P12: =IF(P4=0,0,+P4/P9) -> 0 | Q12: 0 | R12: 0 | S12: 0 | T12: 0 | U12: 0 | V12: 0 | W12: 0 | X12: 0 | Y12: 0 | Z12: 0 | AA12: =+AA4/AA9 -> 0
A13: mo | B13: bel | C13: mo | D13: bel | E13: mo | F13: bel | G13: mo | H13: bel | I13: mo | J13: bel | K13: mo | L13: bel | N13: =+Kriterien!B28 -> G2>80% | O13: =IF(O5=0,0,+O5/O9) -> 0 | P13: =IF(P5=0,0,+P5/P9) -> 0 | Q13: 0 | R13: 0 | S13: 0 | T13: 0 | U13: 0 | V13: 0 | W13: 0 | X13: 0 | Y13: 0 | Z13: 0 | AA13: =+AA5/AA9 -> 0
A14: 6 | B14: =+Kriterien!$B$26 -> W | C14: 6 | D14: =+Kriterien!$B$27 -> T >90% | E14: 6 | F14: =+Kriterien!$B$28 -> G2>80% | G14: 6 | H14: =+Kriterien!$B$29 -> G1>70% | I14: 6 | J14: =+Kriterien!$B$30 -> L>65% | K14: 6 | L14: =+Kriterien!$B$31 -> R<65% | N14: =+Kriterien!B29 -> G1>70% | O14: =IF(O6=0,0,+O6/O9) -> 0 | P14: =IF(P6=0,0,+P6/P9) -> 0 | Q14: 0 | R14: 0 | S14: 0 | T14: 0 | U14: 0 | V14: 0 | W14: 0 | X14: 0 | Y14: 0 | Z14: 0 | AA14: =+AA6/AA9 -> 0
A15: mo | B15: bel | C15: mo | D15: bel | E15: mo | F15: bel | G15: mo | H15: bel | I15: mo | J15: bel | K15: mo | L15: bel | N15: =+Kriterien!B30 -> L>65% | O15: =IF(O7=0,0,+O7/O9) -> 0.4545454545 | P15: =IF(P7=0,0,+P7/P9) -> 0 | Q15: 0 | R15: 0 | S15: 0 | T15: 0 | U15: 0 | V15: 0 | W15: 0 | X15: 0 | Y15: 0 | Z15: 0 | AA15: =+AA7/AA9 -> 0.4545454545
A16: 7 | B16: =+Kriterien!$B$26 -> W | C16: 7 | D16: =+Kriterien!$B$27 -> T >90% | E16: 7 | F16: =+Kriterien!$B$28 -> G2>80% | G16: 7 | H16: =+Kriterien!$B$29 -> G1>70% | I16: 7 | J16: =+Kriterien!$B$30 -> L>65% | K16: 7 | L16: =+Kriterien!$B$31 -> R<65% | N16: =+Kriterien!B31 -> R<65% | O16: =IF(O8=0,0,+O8/O9) -> 0.09090909091 | P16: =IF(P8=0,0,+P8/P9) -> 0 | Q16: 0 | R16: 0 | S16: 0 | T16: 0 | U16: 0 | V16: 0 | W16: 0 | X16: 0 | Y16: 0 | Z16: 0 | AA16: =+AA8/AA9 -> 0.09090909091
A17: mo | B17: bel | C17: mo | D17: bel | E17: mo | F17: bel | G17: mo | H17: bel | I17: mo | J17: bel | K17: mo | L17: bel | N17: Sum | O17: =SUM(O11:O16) -> 1 | P17: =SUM(P11:P16) -> 0 | Q17: 0 | R17: 0 | S17: 0 | T17: 0 | U17: 0 | V17: 0 | W17: 0 | X17: 0 | Y17: 0 | Z17: 0 | AA17: 1
A18: 8 | B18: =+Kriterien!$B$26 -> W | C18: 8 | D18: =+Kriterien!$B$27 -> T >90% | E18: 8 | F18: =+Kriterien!$B$28 -> G2>80% | G18: 8 | H18: =+Kriterien!$B$29 -> G1>70% | I18: 8 | J18: =+Kriterien!$B$30 -> L>65% | K18: 8 | L18: =+Kriterien!$B$31 -> R<65%
A19: mo | B19: bel | C19: mo | D19: bel | E19: mo | F19: bel | G19: mo | H19: bel | I19: mo | J19: bel | K19: mo | L19: bel
A20: 9 | B20: =+Kriterien!$B$26 -> W | C20: 9 | D20: =+Kriterien!$B$27 -> T >90% | E20: 9 | F20: =+Kriterien!$B$28 -> G2>80% | G20: 9 | H20: =+Kriterien!$B$29 -> G1>70% | I20: 9 | J20: =+Kriterien!$B$30 -> L>65% | K20: 9 | L20: =+Kriterien!$B$31 -> R<65%
A21: mo | B21: bel | C21: mo | D21: bel | E21: mo | F21: bel | G21: mo | H21: bel | I21: mo | J21: bel | K21: mo | L21: bel
A22: 10 | B22: =+Kriterien!$B$26 -> W | C22: 10 | D22: =+Kriterien!$B$27 -> T >90% | E22: 10 | F22: =+Kriterien!$B$28 -> G2>80% | G22: 10 | H22: =+Kriterien!$B$29 -> G1>70% | I22: 10 | J22: =+Kriterien!$B$30 -> L>65% | K22: 10 | L22: =+Kriterien!$B$31 -> R<65%
A23: mo | B23: bel | C23: mo | D23: bel | E23: mo | F23: bel | G23: mo | H23: bel | I23: mo | J23: bel | K23: mo | L23: bel
A24: 11 | B24: =+Kriterien!$B$26 -> W | C24: 11 | D24: =+Kriterien!$B$27 -> T >90% | E24: 11 | F24: =+Kriterien!$B$28 -> G2>80% | G24: 11 | H24: =+Kriterien!$B$29 -> G1>70% | I24: 11 | J24: =+Kriterien!$B$30 -> L>65% | K24: 11 | L24: =+Kriterien!$B$31 -> R<65%
A25: mo | B25: bel | C25: mo | D25: bel | E25: mo | F25: bel | G25: mo | H25: bel | I25: mo | J25: bel | K25: mo | L25: bel
A26: 12 | B26: =+Kriterien!$B$26 -> W | C26: 12 | D26: =+Kriterien!$B$27 -> T >90% | E26: 12 | F26: =+Kriterien!$B$28 -> G2>80% | G26: 12 | H26: =+Kriterien!$B$29 -> G1>70% | I26: 12 | J26: =+Kriterien!$B$30 -> L>65% | K26: 12 | L26: =+Kriterien!$B$31 -> R<65%
A28: Sollen mehr als 6 Belastungskriterien verwendet werden, müssen diese Tabellen manuell erweitert werden, damit Statistiken und Grafiken vollständig sind.
